Body Name,Body,Service Level,Expense Type,Expense Code,Narrative,Date,Transaction Number,Amount,Capital and Revenue,Supplier Name,Supplier ID
South Ribble Council,http://statistics.data.gov.uk/doc/local-authority/30UN,Housing,Cap Grant- Improve Grants,C570,DFG WORK AT ADDRESS REDACTED AGREED TO PAY 50%COST - 1300.00,27/09/2017,0000434771,"1,300.00",Revenue,ABBI PROPERTY SERVICES LTD,131357
South Ribble Council,http://statistics.data.gov.uk/doc/local-authority/30UN,Shared Assurance Services,Other Grants and Subscriptions,4741,flood grant,27/09/2017,0000434761,"8,007.85",Revenue,Accent Housing,132351
South Ribble Council,http://statistics.data.gov.uk/doc/local-authority/30UN,Property Services,Rep & Maint Premises,2020,Annual Contract for 2017/2018 for Civic Centre as per quote dated  17th May  2017-  External window cleaning to all windows &,13/09/2017,0000434433,"1,700.00",Revenue,ACS SPECIALIST CLEANING LTD,00099752
South Ribble Council,http://statistics.data.gov.uk/doc/local-authority/30UN,Property Services,Rep & Maint Fixed Plant,2035,2017 / 2018 annual contract for CCTV maintenance at Moss Side Depot ,01/09/2017,0000434273,"2,242.00",Revenue,ADT FIRE & SECURITY PLC,131052
South Ribble Council,http://statistics.data.gov.uk/doc/local-authority/30UN,Area 2 - Waste Transport/Eastern & Central Teams,External Contractors Charges,4570,AE12 AXR - Repair & Maintenance Contract June 2017 - May 2018,22/09/2017,0000434581,"6,405.00",Revenue,AEBI SCHMIDT UK LTD,00085672
South Ribble Council,http://statistics.data.gov.uk/doc/local-authority/30UN,Revenues Plus,Financial,4811,post office trans,06/09/2017,0000434371,"1,122.26",Revenue,ALLPAY LTD,00122276
South Ribble Council,http://statistics.data.gov.uk/doc/local-authority/30UN,Revenues Plus,Financial,4811,paypoint,06/09/2017,0000434371,184.48,Revenue,ALLPAY LTD,00122276
South Ribble Council,http://statistics.data.gov.uk/doc/local-authority/30UN,Revenues Plus,Financial,4811,webconnect,06/09/2017,0000434371,46.56,Revenue,ALLPAY LTD,00122276
South Ribble Council,http://statistics.data.gov.uk/doc/local-authority/30UN,Housing,Cap Grant- Improve Grants,C570,DFG ADAPTATION WORK ATADDRESS REDACTED AS PER YOUR QUOTE OF3875.00,13/09/2017,0000434546,"3,875.00",Revenue,APG DOMESTIC SERVICES,00061463
South Ribble Council,http://statistics.data.gov.uk/doc/local-authority/30UN,Housing,Cap Grant- Improve Grants,C570,DFG ADAPTATION WORK AT ADDRESS REDACTD AS PER YOUR QUOTE OF3675.00,27/09/2017,0000434811,"3,675.00",Revenue,APG DOMESTIC SERVICES,00061463
South Ribble Council,http://statistics.data.gov.uk/doc/local-authority/30UN,Information Services,Peripherals,4248,iConnect Hosted (3 user licence) and iConnect Hosted (Additional licence).  Annual charge for software maintenance,01/09/2017,0000434302,578.00,Revenue,APT LTD,130261
South Ribble Council,http://statistics.data.gov.uk/doc/local-authority/30UN,Area 1 - Penwortham Western Parishes,Materials General,4040,100 PARKING PERMITS - AS PER ESTIMATE NO. 127227,06/09/2017,0000433878,293.00,Revenue,B & D PRINT SERVICES LTD,00015134
South Ribble Council,http://statistics.data.gov.uk/doc/local-authority/30UN,Area 3 - Parks/Leyland East West,Grounds Maint Cntrctrs Chgs,4657,25x Taxus Bacata 125/150 @ 46.50,06/09/2017,0000434205,"1,162.50",Revenue,BANNISTER HALL LANDSCAPE SUPPLIES,00117786
South Ribble Council,http://statistics.data.gov.uk/doc/local-authority/30UN,Shared Financial Services,Legal,4822,NAME REDACTED - 09/03/17 - HM Courts - Court costs 289 liability orders,14/06/2017,0000431475,867.00,Revenue,Barclays Bank Plc,130842
South Ribble Council,http://statistics.data.gov.uk/doc/local-authority/30UN,Shared Financial Services,Other Misc,4851,NAME REDACTED - 28/02/07 - The Range - Furniture for SRP project,14/06/2017,0000431475,686.17,Revenue,Barclays Bank Plc,130842
South Ribble Council,http://statistics.data.gov.uk/doc/local-authority/30UN,Shared Financial Services,Other Misc,4851,NAME REDACTED - 01/03/17 - Leyland Furniture - Furniture for SRP project,14/06/2017,0000431475,"2,064.00",Revenue,Barclays Bank Plc,130842
South Ribble Council,http://statistics.data.gov.uk/doc/local-authority/30UN,Shared Financial Services,Professional Fees,4520,NAME REDACTED - 09/03/17 - Adobe Export - PDF converter to Excel and Word,14/06/2017,0000431475,21.14,Revenue,Barclays Bank Plc,130842
South Ribble Council,http://statistics.data.gov.uk/doc/local-authority/30UN,Shared Financial Services,Consultancy Fees,4541,NAME REDACTED - 23/03/17 - Hallmark Hotel - Hotel room for visiting external assessor,14/06/2017,0000431475,260.00,Revenue,Barclays Bank Plc,130842
South Ribble Council,http://statistics.data.gov.uk/doc/local-authority/30UN,Shared Financial Services,Peripherals,4243,NAME REDACTED - 24/03/17 - Surveymonkey.com - Gold Plan Subscription,14/06/2017,0000431475,300.00,Revenue,Barclays Bank Plc,130842
South Ribble Council,http://statistics.data.gov.uk/doc/local-authority/30UN,Shared Financial Services,Legal,4822,NAME REDACTED - 06/04/17 - HM Courts - Court costs 139 liability orders,05/07/2017,0000432317,417.00,Revenue,Barclays Bank Plc,130842
South Ribble Council,http://statistics.data.gov.uk/doc/local-authority/30UN,Shared Financial Services,General Travel Costs,3411,NAME REDACTED - 28/03/17 - Virgin Trains - Royal Visit Garden Party - York to London 15/5/17,05/07/2017,0000432317,159.00,Revenue,Barclays Bank Plc,130842
South Ribble Council,http://statistics.data.gov.uk/doc/local-authority/30UN,Shared Financial Services,Training Expense-Course Fees,1403,NAME REDACTED - 28/03/17 - Ilex.org.uk - Exam fees - NAME REDACTED,05/07/2017,0000432317,248.00,Revenue,Barclays Bank Plc,130842
South Ribble Council,http://statistics.data.gov.uk/doc/local-authority/30UN,Shared Financial Services,General Travel Costs,3411,NAME REDACTED - 29/03/17 - Virgin Trains - Training course - Preston to Birmingham 4/4/17,05/07/2017,0000432317,71.55,Revenue,Barclays Bank Plc,130842
South Ribble Council,http://statistics.data.gov.uk/doc/local-authority/30UN,Shared Financial Services,Training Expense-Course Fees,1403,NAME REDACTED - 31/03/17 - Cilex Law School - Revision Course x2 NAME REDACTED,05/07/2017,0000432317,416.66,Revenue,Barclays Bank Plc,130842
South Ribble Council,http://statistics.data.gov.uk/doc/local-authority/30UN,Shared Financial Services,Rents,2403,NAME REDACTED - 05/04/17 - Travelodge - Accomodation,05/07/2017,0000432317,10.00,Revenue,Barclays Bank Plc,130842
South Ribble Council,http://statistics.data.gov.uk/doc/local-authority/30UN,Shared Financial Services,Training Expense-Course Fees,1402,NAME REDACTED - 20/04/17 - Paypal NWEEG - NWEEG Conference & Awards 18/05/17,05/07/2017,0000432317,102.00,Revenue,Barclays Bank Plc,130842
South Ribble Council,http://statistics.data.gov.uk/doc/local-authority/30UN,Shared Financial Services,General Travel Costs,3411,NAME REDACTED - 21/04/17 - Virgin Trains - Royal Garden Party - Preston to London 23/5/17,05/07/2017,0000432317,341.30,Revenue,Barclays Bank Plc,130842
South Ribble Council,http://statistics.data.gov.uk/doc/local-authority/30UN,Shared Financial Services,General Travel Costs,3411,NAME REDACTED - 24/03/17 - Virgin Trains - Training Course - Preston to Birmingham,05/07/2017,0000432317,52.55,Revenue,Barclays Bank Plc,130842
South Ribble Council,http://statistics.data.gov.uk/doc/local-authority/30UN,Shared Financial Services,General Travel Costs,3411,NAME REDACTED - 02/05/17 - Virgin Trains - tickets Preston to London NAMES REDACTED,05/07/2017,0000432806,416.00,Revenue,Barclays Bank Plc,130842
South Ribble Council,http://statistics.data.gov.uk/doc/local-authority/30UN,Shared Financial Services,Other Misc,4851,NAME REDACTED - 10/05/07 - Basecamp,05/07/2017,0000432806,398.09,Revenue,Barclays Bank Plc,130842
South Ribble Council,http://statistics.data.gov.uk/doc/local-authority/30UN,Shared Financial Services,Other Expenses,4630,NAME REDACTED - 15/05/17 - Virgin Trains - tickets Preston to London NAME REDACTED,05/07/2017,0000432806,209.00,Revenue,Barclays Bank Plc,130842
South Ribble Council,http://statistics.data.gov.uk/doc/local-authority/30UN,Shared Financial Services,Consultancy Fees,4541,NAME REDACTED - 19/05/17 - CPC - Rextron KVS 534A 4 Way SVGA splitter,05/07/2017,0000432806,59.28,Revenue,Barclays Bank Plc,130842
South Ribble Council,http://statistics.data.gov.uk/doc/local-authority/30UN,Shared Financial Services,Training Expense-Course Fees,1402,NAME REDACTED - 22/05/17 - CIEH - Training course - Understanding & Applying HHSRS,05/07/2017,0000432806,736.00,Revenue,Barclays Bank Plc,130842
South Ribble Council,http://statistics.data.gov.uk/doc/local-authority/30UN,Shared Financial Services,Legal,4822,NAME REDACTED - 07/06/17 - HM Courts - 1187 liability orders,30/08/2017,0000433571,"3,561.00",Revenue,Barclays Bank Plc,130842
South Ribble Council,http://statistics.data.gov.uk/doc/local-authority/30UN,Shared Financial Services,Contributions,4730,NAME REDACTED - 06/06/17 - Virgin Train - Train tickets - Preston to Birmingham,30/08/2017,0000433571,105.00,Revenue,Barclays Bank Plc,130842
South Ribble Council,http://statistics.data.gov.uk/doc/local-authority/30UN,Shared Financial Services,General Travel Costs,3411,NAME REDACTED - 12/06/17 - Virgin Trains - Train fare Preston to London - RCIS Public Sector Group,30/08/2017,0000433571,197.65,Revenue,Barclays Bank Plc,130842
South Ribble Council,http://statistics.data.gov.uk/doc/local-authority/30UN,Shared Financial Services,General Travel Costs,3411,NAME REDACTED - 20/06/17 - Virgin Trains - Train Fare - Liverpool to London - Course Attendance,30/08/2017,0000433571,226.00,Revenue,Barclays Bank Plc,130842
South Ribble Council,http://statistics.data.gov.uk/doc/local-authority/30UN,Shared Financial Services,General Travel Costs,3411,NAME REDACTED - 20/06/17 - Virgin Trains - Train Fare - Preston to Coventry - Training Course,30/08/2017,0000433571,61.50,Revenue,Barclays Bank Plc,130842
South Ribble Council,http://statistics.data.gov.uk/doc/local-authority/30UN,Shared Financial Services,Training Expense-Course Fees,1402,NAME REDACTED - 22/06/17 - CIEH - Works in Default,30/08/2017,0000433571,92.00,Revenue,Barclays Bank Plc,130842
South Ribble Council,http://statistics.data.gov.uk/doc/local-authority/30UN,Shared Financial Services,Other Misc,4851,NAME REDACTED - 26/06/17 - DVLA Dup reg doc - Replacement log book for fire engine,30/08/2017,0000433571,25.00,Revenue,Barclays Bank Plc,130842
South Ribble Council,http://statistics.data.gov.uk/doc/local-authority/30UN,Shared Financial Services,Legal,4822,NAME REDACTED - 05/07/17 - HM Courts - 322 liability orders,30/08/2017,0000434263,966.00,Revenue,Barclays Bank Plc,130842
South Ribble Council,http://statistics.data.gov.uk/doc/local-authority/30UN,Shared Financial Services,Contractors Charges 5,5311,NAME REDACTED - 04/07/17 -  Park Hall Hotel - Accom 4-7/7/17 Deposit,30/08/2017,0000434263,138.00,Revenue,Barclays Bank Plc,130842
South Ribble Council,http://statistics.data.gov.uk/doc/local-authority/30UN,Shared Financial Services,Contractors Charges 5,5311,NAME REDACTED - 07/07/17 -  Park Hall Hotel - Accom 4-7/7/17 Balance,30/08/2017,0000434263,64.00,Revenue,Barclays Bank Plc,130842
South Ribble Council,http://statistics.data.gov.uk/doc/local-authority/30UN,Shared Financial Services,Contractors Charges 5,5311,NAME REDACTED - 21/07/17 -  Hallmark Hotel - Accom 20-21/7/17,30/08/2017,0000434263,139.00,Revenue,Barclays Bank Plc,130842
South Ribble Council,http://statistics.data.gov.uk/doc/local-authority/30UN,Shared Financial Services,Contractors Charges 5,5311,NAME REDACTED - 03/07/17 - Park Hall Hotel - Accom 3-4/7/17,30/08/2017,0000434263,53.33,Revenue,Barclays Bank Plc,130842
South Ribble Council,http://statistics.data.gov.uk/doc/local-authority/30UN,Shared Financial Services,Contractors Charges 5,5311,NAME REDACTED - 26/07/17 - Premier Inn - Accom 26/7/17,30/08/2017,0000434263,201.98,Revenue,Barclays Bank Plc,130842
South Ribble Council,http://statistics.data.gov.uk/doc/local-authority/30UN,Shared Financial Services,Training Expense-Course Fees,1406,NAME REDACTED - 29/06/17 - Virgin Trains - Attendance at LGA Conference 2017,30/08/2017,0000434263,157.65,Revenue,Barclays Bank Plc,130842
South Ribble Council,http://statistics.data.gov.uk/doc/local-authority/30UN,Shared Financial Services,Other Expenses,463A,NAME REDACTED - 29/06/17 - Jockey Club Racecourse - Race Tickets for Mayors Charity Event,30/08/2017,0000434263,620.00,Revenue,Barclays Bank Plc,130842
South Ribble Council,http://statistics.data.gov.uk/doc/local-authority/30UN,Shared Financial Services,Training Expense-Course Fees,1406,NAME REDACTED - 06/07/17 - Jurys Birmingham - Hotel - Attendance at LGA Conference 2017,30/08/2017,0000434263,308.00,Revenue,Barclays Bank Plc,130842
South Ribble Council,http://statistics.data.gov.uk/doc/local-authority/30UN,Shared Financial Services,Training Expense-Course Fees,1406,NAME REDACTED - 06/07/17 - Jurys Birmingham - Hotel - Attendance at LGA Conference 2017,30/08/2017,0000434263,308.00,Revenue,Barclays Bank Plc,130842
South Ribble Council,http://statistics.data.gov.uk/doc/local-authority/30UN,Shared Financial Services,Training Expense-Course Fees,1406,NAME REDACTED - 06/07/17 - Jurys Birmingham - Hotel - Attendance at LGA Conference 2017,30/08/2017,0000434263,308.00,Revenue,Barclays Bank Plc,130842
South Ribble Council,http://statistics.data.gov.uk/doc/local-authority/30UN,Shared Financial Services,Training Expense-Course Fees,1402,NAME REDACTED - 14/07/17 - Virgin Trains - Training Course London,30/08/2017,0000434263,316.00,Revenue,Barclays Bank Plc,130842
South Ribble Council,http://statistics.data.gov.uk/doc/local-authority/30UN,Shared Financial Services,Other Misc,4851,NAME REDACTED - 20/06/17 - www.theknowledgeacadem - online training package,30/08/2017,0000434263,120.00,Revenue,Barclays Bank Plc,130842
South Ribble Council,http://statistics.data.gov.uk/doc/local-authority/30UN,Shared Financial Services,Sports Dev Expenses,4894,NAME REDACTED - 20/07/17 - Plastic and foam fencing kit,30/08/2017,0000434263,579.75,Revenue,Barclays Bank Plc,130842
South Ribble Council,http://statistics.data.gov.uk/doc/local-authority/30UN,Shared Financial Services,Other Misc,4851,NAME REDACTED - 24/07/17 - 1&1Internet Ltd - Domain registration x2 for 2 years,30/08/2017,0000434263,35.93,Revenue,Barclays Bank Plc,130842
South Ribble Council,http://statistics.data.gov.uk/doc/local-authority/30UN,Planning,Professional Fees,4510,Joint employment land study on behalf of Preston City Council 40% of final fee,22/09/2017,0000434617,"5,625.00",Revenue,BE LTD,130661
South Ribble Council,http://statistics.data.gov.uk/doc/local-authority/30UN,Planning,Professional Fees,4510,Joint employment land study on behalf of Chorley Borough Council 40% of final fee,22/09/2017,0000434618,"5,535.00",Revenue,BE LTD,130661
South Ribble Council,http://statistics.data.gov.uk/doc/local-authority/30UN,Property Services,Rep & Maint Premises,2020,Supply & fit time sensors to 6 x pavilions at Worden Park to ensure the lights don't stay on following the vacation of sports teams,22/09/2017,0000434521,684.07,Revenue,BELEC ELECTRICAL LTD,130290
South Ribble Council,http://statistics.data.gov.uk/doc/local-authority/30UN,HR & Communications,Training Expense-Course Fees,1403,"NAME REDACTED TO ATTEND COURSE - BIFM LEVEL 4 IN FACILITIES MANAGEMENT 2017/2018, DISTANCE LEARNING",20/09/2017,0000434576,995.00,Revenue,BIFM LTD,132317
South Ribble Council,http://statistics.data.gov.uk/doc/local-authority/30UN,HR & Communications,Training Expense-Course Fees,1403,booking fee,20/09/2017,0000434576,3.14,Revenue,BIFM LTD,132317
South Ribble Council,http://statistics.data.gov.uk/doc/local-authority/30UN,HR & Communications,Training Expense-Course Fees,1403,CONTINUATION OF CILEX PROFESSIONAL DIPLOMA IN LAW & PRACTICE (LEVEL 6) NAME REDACTED SEPT 17 JUNE 18,29/09/2017,0000434786,"2,140.00",Revenue,BLACKBURN COLLEGE,00003735
South Ribble Council,http://statistics.data.gov.uk/doc/local-authority/30UN,Property Services,Rep & Maint Premises,2020,"Annual PAT Testing 2017/2018 for South Ribble Borough Council - at Civic Centre, Leyland PR25 1DH",27/09/2017,0000434740,384.80,Revenue,Calbarrie Compliance Services Ltd,132243
South Ribble Council,http://statistics.data.gov.uk/doc/local-authority/30UN,HR & Communications,Training Expense-Course Fees,1403,POSTGRADUATE CERTIFICATE IN HOUSING STUDIES LEVEL 7 NAME REDACTED SEP 17 JUNE 18 DISTANCE LEARNING,01/09/2017,0000434065,"2,500.00",Revenue,CHARTERED INST OF HOUSING,00018160
South Ribble Council,http://statistics.data.gov.uk/doc/local-authority/30UN,Homelessness,Contributions,4730,Block Booking Flat 20 Cotswold House 1/08/17  - 31/08/17   = 31 days @35.28 = 1093.68 +VAT,06/09/2017,0000434326,"1,093.68",Revenue,CHORLEY BOROUGH COUNCIL,00017352
South Ribble Council,http://statistics.data.gov.uk/doc/local-authority/30UN,Homelessness,Contributions,4730,Civica upgrade and training costs,13/09/2017,0000434436,"4,200.00",Revenue,CIVICA UK LTD,00102717
South Ribble Council,http://statistics.data.gov.uk/doc/local-authority/30UN,Regeneration,Other Misc,485A,Batteries for Christmas lights,15/09/2017,0000434437,431.36,Revenue,COMBINED PRECISION COMPONENTS PLC,00017954
South Ribble Council,http://statistics.data.gov.uk/doc/local-authority/30UN,Homelessness,Contributions,4730,Select move management costs 2017/2018,01/09/2017,0000434305,585.43,Revenue,COMMUNITY GATEWAY HOUSING ASSOCIATION,00101682
South Ribble Council,http://statistics.data.gov.uk/doc/local-authority/30UN,Property Services,Rep & Maint Premises,2020,2017/2018 Annual Inspection of doors and windows at Bamber Bridge Leisure Centre,22/09/2017,0000434676,125.28,Revenue,COOPER BESPOKE JOINERY LTD,00104456
South Ribble Council,http://statistics.data.gov.uk/doc/local-authority/30UN,Property Services,Rep & Maint Premises,2020,2017/2018 Annual Inspection of doors and windows at Carr Street Community Centre,22/09/2017,0000434676,25.92,Revenue,COOPER BESPOKE JOINERY LTD,00104456
South Ribble Council,http://statistics.data.gov.uk/doc/local-authority/30UN,Property Services,Rep & Maint Premises,2020,2017/2018 Annual Inspection of doors and windows at Civic Centre,22/09/2017,0000434676,146.88,Revenue,COOPER BESPOKE JOINERY LTD,00104456
South Ribble Council,http://statistics.data.gov.uk/doc/local-authority/30UN,Property Services,Rep & Maint Premises,2020,2017/2018Annual Inspection of doors and windows at Higher Walton Community Centre,22/09/2017,0000434676,34.56,Revenue,COOPER BESPOKE JOINERY LTD,00104456
South Ribble Council,http://statistics.data.gov.uk/doc/local-authority/30UN,Property Services,Rep & Maint Premises,2020,2017/2018 Annual Inspection of doors and windows at Kingsfold Community Centre/Penwortham Town Council,22/09/2017,0000434676,43.20,Revenue,COOPER BESPOKE JOINERY LTD,00104456
South Ribble Council,http://statistics.data.gov.uk/doc/local-authority/30UN,Property Services,Rep & Maint Premises,2020,2017/2018Annual Inspection of doors and windows at Penwortham Leisure Centre,22/09/2017,0000434677,159.24,Revenue,COOPER BESPOKE JOINERY LTD,00104456
South Ribble Council,http://statistics.data.gov.uk/doc/local-authority/30UN,Property Services,Rep & Maint Premises,2020,2017/2018Annual Inspection of doors and windows at Public Conveniences,22/09/2017,0000434677,86.40,Revenue,COOPER BESPOKE JOINERY LTD,00104456
South Ribble Council,http://statistics.data.gov.uk/doc/local-authority/30UN,Property Services,Rep & Maint Premises,2020,2017/2018Annual Inspection of doors and windows at Sports Pavillions at Moss Side and Holland House,22/09/2017,0000434677,397.44,Revenue,COOPER BESPOKE JOINERY LTD,00104456
South Ribble Council,http://statistics.data.gov.uk/doc/local-authority/30UN,Property Services,Rep & Maint Premises,2020,2017/2018 Annual Inspection of doors and windows at Tennis Centre,22/09/2017,0000434677,86.40,Revenue,COOPER BESPOKE JOINERY LTD,00104456
South Ribble Council,http://statistics.data.gov.uk/doc/local-authority/30UN,Property Services,Rep & Maint Premises,2020,2017/2018 Annual Inspection of doors and windows at Worden Arts Centre,22/09/2017,0000434677,208.24,Revenue,COOPER BESPOKE JOINERY LTD,00104456
South Ribble Council,http://statistics.data.gov.uk/doc/local-authority/30UN,Property Services,Rep & Maint Premises,2020,2017/2018 Annual Inspection of doors and windows at Worden Park Properties,22/09/2017,0000434677,60.48,Revenue,COOPER BESPOKE JOINERY LTD,00104456
South Ribble Council,http://statistics.data.gov.uk/doc/local-authority/30UN,Property Services,Rep & Maint Premises,2020,"Gardeners Cottage, Worden Park To manufacture and install hardwood timber window frame and glazing to match existing ",22/09/2017,0000434678,656.64,Revenue,COOPER BESPOKE JOINERY LTD,00104456
South Ribble Council,http://statistics.data.gov.uk/doc/local-authority/30UN,Property Services,Rep & Maint Premises,2020,materials,22/09/2017,0000434678,271.48,Revenue,COOPER BESPOKE JOINERY LTD,00104456
South Ribble Council,http://statistics.data.gov.uk/doc/local-authority/30UN,Area 3 - Parks/Leyland East West,Grounds Maint Cntrctrs Chgs,4657,MANUFACTURE OF MOULDS & CASTING 65 WHOLE & 8 No HALF BESPOKE BALUSTERS AS PER QUOTE SOU11/4/17 ,27/09/2017,0000434699,"2,607.00",Revenue,Cranborne Stone Ltd,132238
South Ribble Council,http://statistics.data.gov.uk/doc/local-authority/30UN,Revenues Plus,Postage,4291,Postage April 17 2460.63 Postage May 17 3000.00,01/09/2017,0000434322,490.35,Revenue,CRITIQOM,131053
South Ribble Council,http://statistics.data.gov.uk/doc/local-authority/30UN,Revenues Plus,Postage,4291,Postage for August 2017,15/09/2017,0000434498,640.60,Revenue,CRITIQOM,131053
South Ribble Council,http://statistics.data.gov.uk/doc/local-authority/30UN,Revenues Plus,Stationery,4130,Stationery for August 2017,20/09/2017,0000434533,565.73,Revenue,CRITIQOM,131053
South Ribble Council,http://statistics.data.gov.uk/doc/local-authority/30UN,Revenues Plus,Postage,4291,Postage Sept 2017,22/09/2017,0000434700,659.85,Revenue,CRITIQOM,131053
South Ribble Council,http://statistics.data.gov.uk/doc/local-authority/30UN,Revenues Plus,Postage,4291,Postage Sept 2017,29/09/2017,0000434838,432.98,Revenue,CRITIQOM,131053
South Ribble Council,http://statistics.data.gov.uk/doc/local-authority/30UN,HR & Communications,Balance Sheet,0030,BIKE - CYCLE TO WORK SCHEME - NAME REDACTED,27/09/2017,0000434663,694.17,Revenue,CYCLESCHEME CO  UK,130237
South Ribble Council,http://statistics.data.gov.uk/doc/local-authority/30UN,Property Services,Rep & Maint Premises,2020,Annual Contract for maint 1x McSmart 240cr Industrial Water Chiller and 1 x McQuay Air Handling Unit  as per Schedule 1,22/09/2017,0000434518,510.00,Revenue,DAIKIN APPLIED SERVICE,130324
South Ribble Council,http://statistics.data.gov.uk/doc/local-authority/30UN,Area 3 - Parks/Leyland East West,External Contractors Charges,4570,"Verti Drain, Much Hoole and Penwortham @ 1200.00",06/09/2017,0000433444,"1,200.00",Revenue,Danvic Turf Care,132300
South Ribble Council,http://statistics.data.gov.uk/doc/local-authority/30UN,Area 2 - Waste Transport/Eastern & Central Teams,External Contractors Charges,4570,Excess SPEC REPAIR - JFC9239 - PN58WFZ - PD,15/09/2017,0000434435,250.00,Revenue,DAVAND LTD (trading as Longton Coachcraft),131579
South Ribble Council,http://statistics.data.gov.uk/doc/local-authority/30UN,Area 2 - Waste Transport/Eastern & Central Teams,External Contractors Charges,4570,VAT,15/09/2017,0000434435,0.00,Revenue,DAVAND LTD (trading as Longton Coachcraft),131579
South Ribble Council,http://statistics.data.gov.uk/doc/local-authority/30UN,Development Enterprise & Comm Mgnt,Other Misc,4851,Provision of Cycle Training July 2017  Total Cost 990,01/09/2017,0000434306,990.00,Revenue,David Boyle,132006
South Ribble Council,http://statistics.data.gov.uk/doc/local-authority/30UN,Revenues Plus,Balance Sheet,0008,Balance Sheet,13/09/2017,0000434535,"1,858.02",Revenue,Debt Management,132339
South Ribble Council,http://statistics.data.gov.uk/doc/local-authority/30UN,Area 2 - Waste Transport/Eastern & Central Teams,External Contractors Charges,4570,"Spec Repair, VO65 KPY, JFC9301. (NAME REDACTED)",15/09/2017,0000434514,297.12,Revenue,DENNIS EAGLE LTD,00019774
South Ribble Council,http://statistics.data.gov.uk/doc/local-authority/30UN,Information Services,Peripherals,4247,"Telephone & Engineer Onsite Printer Support Contract for 1 year, as per quote ref:  QT-178967-1",27/09/2017,0000434791,780.00,Revenue,DIGITAL ID LTD,130641
South Ribble Council,http://statistics.data.gov.uk/doc/local-authority/30UN,Homelessness,Contributions,4730,2nd quarter of contract July - September 2017,20/09/2017,0000434603,"4,875.00",Revenue,Disc (Developing initiatives supporting communitie,132271
South Ribble Council,http://statistics.data.gov.uk/doc/local-authority/30UN,Property Services,Fixtures and Fittings,2611,2017 / 2018 contract for the service of manual sliding walls at the civic centre as per your quotation 100884,01/09/2017,0000434320,828.00,Revenue,DORMA UK LTD,00103305
South Ribble Council,http://statistics.data.gov.uk/doc/local-authority/30UN,Regeneration,Capital Expenditure,C234,15 off 1.8m Corten Planters,20/09/2017,0000434586,"39,000.00",Revenue,DP STRUCTURES LTD,00120485
South Ribble Council,http://statistics.data.gov.uk/doc/local-authority/30UN,Regeneration,Capital Expenditure,C234,Horse and Cart gateway Feature,20/09/2017,0000434587,"35,000.00",Revenue,DP STRUCTURES LTD,00120485
South Ribble Council,http://statistics.data.gov.uk/doc/local-authority/30UN,Healthy Communities,Capital Expenditure,C230,Post Drainage Works  completed at Gregson Lane Playing Fields (Interim Certificate No.5),15/09/2017,0000434495,"4,346.13",Revenue,DUNCAN ROSS LIMITED,130432
South Ribble Council,http://statistics.data.gov.uk/doc/local-authority/30UN,Neighbourhood Admin & Support,Materials General,4040,BLACK BIN LINERS 18 x 29 x 39 100g WITH KEEP SOUTH RIBBLE TIDY LOGO @ 58.80 per 1000,20/09/2017,0000434496,"2,059.00",Revenue,Durasak Ltd,132141
South Ribble Council,http://statistics.data.gov.uk/doc/local-authority/30UN,Property Services,Rep & Maint Premises,2020,"Annual Contract for the maintenance of the Lift  (Quote QS6954) 2017/2018 at Civic Centre, West Paddock, Leyland",01/09/2017,0000434317,447.50,Revenue,E A Foulds Limited,131427
South Ribble Council,http://statistics.data.gov.uk/doc/local-authority/30UN,Information Services,Peripherals,4260,Peripherals,08/09/2017,0000434426,"2,295.50",Revenue,EE Ltd,131653
South Ribble Council,http://statistics.data.gov.uk/doc/local-authority/30UN,Information Services,Publications,4142,Annual Subscription  - 5 copies Local Government Chronicle   9 September 2017 to 8 September 2018,13/09/2017,0000434526,"1,415.00",Revenue,EMAP COMMUNICATIONS LTD,00021241
South Ribble Council,http://statistics.data.gov.uk/doc/local-authority/30UN,Area 2 - Waste Transport/Eastern & Central Teams,Materials General,4040,"1 arm, 1 bracket, 1 latch, PO16 HNA, JFC9122. (NAME REDACTED)",01/09/2017,0000434255,416.71,Revenue,F R SHARROCK LTD,00034539
South Ribble Council,http://statistics.data.gov.uk/doc/local-authority/30UN,Area 2 - Waste Transport/Eastern & Central Teams,Materials General,4040,12 SOLE PLATES BIN1265A,01/09/2017,0000434276,326.40,Revenue,F R SHARROCK LTD,00034539
South Ribble Council,http://statistics.data.gov.uk/doc/local-authority/30UN,Area 2 - Waste Transport/Eastern & Central Teams,Materials General,4040,20 SCRAPER WIRES - BIN 1060 - BO,13/09/2017,0000434368,293.92,Revenue,F R SHARROCK LTD,00034539
South Ribble Council,http://statistics.data.gov.uk/doc/local-authority/30UN,Democratic Services,Operational Furniture & Equip,4010,"Artwork as discussed Bespoke keys hallmarked sterling silver, finished in polished parcel hard gold plate.",20/09/2017,0000434670,"1,108.08",Revenue,FATTORINI SALES & PRODUCTION,131045
South Ribble Council,http://statistics.data.gov.uk/doc/local-authority/30UN,Area 2 - Waste Transport/Eastern & Central Teams,External Contractors Charges,4570,ADDITIONAL CLINICAL WASTE COLLECTIONS AUGUST 2017,22/09/2017,0000434410,364.32,Revenue,FCC Environment Services (UK) Ltd,131612
South Ribble Council,http://statistics.data.gov.uk/doc/local-authority/30UN,Area 2 - Waste Transport/Eastern & Central Teams,External Contractors Charges,4570,RESIDUAL WASTE AUGUST 2017,22/09/2017,0000434442,"42,243.12",Revenue,FCC Environment Services (UK) Ltd,131612
South Ribble Council,http://statistics.data.gov.uk/doc/local-authority/30UN,Area 2 - Waste Transport/Eastern & Central Teams,External Contractors Charges,4570,DRY RECYCLABLE NON TERRACED AUGUST 2017,22/09/2017,0000434442,"42,600.51",Revenue,FCC Environment Services (UK) Ltd,131612
South Ribble Council,http://statistics.data.gov.uk/doc/local-authority/30UN,Area 2 - Waste Transport/Eastern & Central Teams,External Contractors Charges,4570,DRY RECYCLABLE TERRACED AUGUST 2017,22/09/2017,0000434442,"2,023.12",Revenue,FCC Environment Services (UK) Ltd,131612
South Ribble Council,http://statistics.data.gov.uk/doc/local-authority/30UN,Area 2 - Waste Transport/Eastern & Central Teams,External Contractors Charges,4570,ORGANIC WASTE NON TERRACED AUGUST 2017,22/09/2017,0000434442,"29,527.11",Revenue,FCC Environment Services (UK) Ltd,131612
South Ribble Council,http://statistics.data.gov.uk/doc/local-authority/30UN,Area 2 - Waste Transport/Eastern & Central Teams,External Contractors Charges,4570,SCHEDULE 2 PROPERTIES AUGUST 2017,22/09/2017,0000434442,"1,689.25",Revenue,FCC Environment Services (UK) Ltd,131612
South Ribble Council,http://statistics.data.gov.uk/doc/local-authority/30UN,Area 2 - Waste Transport/Eastern & Central Teams,External Contractors Charges,4570,COMMERCIAL WASTE AUGUST 2017,22/09/2017,0000434442,"6,617.78",Revenue,FCC Environment Services (UK) Ltd,131612
South Ribble Council,http://statistics.data.gov.uk/doc/local-authority/30UN,Area 2 - Waste Transport/Eastern & Central Teams,External Contractors Charges,4570,BULKY WASTE AUGUST 2017,22/09/2017,0000434442,914.85,Revenue,FCC Environment Services (UK) Ltd,131612
South Ribble Council,http://statistics.data.gov.uk/doc/local-authority/30UN,Area 2 - Waste Transport/Eastern & Central Teams,External Contractors Charges,4570,WEEE COLLECTIONS AUGUST 2017,22/09/2017,0000434442,342.06,Revenue,FCC Environment Services (UK) Ltd,131612
South Ribble Council,http://statistics.data.gov.uk/doc/local-authority/30UN,Area 2 - Waste Transport/Eastern & Central Teams,External Contractors Charges,4570,CLINICAL WASTE COLLECTIONS AUGUST 2017,22/09/2017,0000434442,582.54,Revenue,FCC Environment Services (UK) Ltd,131612
South Ribble Council,http://statistics.data.gov.uk/doc/local-authority/30UN,Area 2 - Waste Transport/Eastern & Central Teams,External Contractors Charges,4570,ADDITIONAL PROPERTIES AUGUST 2017,22/09/2017,0000434442,"1,345.35",Revenue,FCC Environment Services (UK) Ltd,131612
South Ribble Council,http://statistics.data.gov.uk/doc/local-authority/30UN,Area 2 - Waste Transport/Eastern & Central Teams,External Contractors Charges,4570,REPLACEMENT BINS AUGUST 2017,22/09/2017,0000434442,"5,000.00",Revenue,FCC Environment Services (UK) Ltd,131612
South Ribble Council,http://statistics.data.gov.uk/doc/local-authority/30UN,Area 2 - Waste Transport/Eastern & Central Teams,External Contractors Charges,4570,ADDITIONAL WORKS - GALAS,22/09/2017,0000434442,644.18,Revenue,FCC Environment Services (UK) Ltd,131612
South Ribble Council,http://statistics.data.gov.uk/doc/local-authority/30UN,Housing,Contributions,4730,Gas servicing for winter warmth scheme,22/09/2017,0000434701,290.00,Revenue,GOS Heating Ltd,131387
South Ribble Council,http://statistics.data.gov.uk/doc/local-authority/30UN,Shared Financial Services,Professional Fees,4512,Main Audit Fee for 2017/18,27/09/2017,0000434633,"10,980.00",Revenue,Grant Thornton UK LLP,130718
South Ribble Council,http://statistics.data.gov.uk/doc/local-authority/30UN,Property Services,Rep & Maint Fixed Plant,2035,2017/2018 annual maintenance contract for the intruder alarm at Leyland market,22/09/2017,0000434484,350.00,Revenue,Grantfen Fire & Security Ltd,131572
South Ribble Council,http://statistics.data.gov.uk/doc/local-authority/30UN,Property Services,Rep & Maint Fixed Plant,2035,2017/2018 monitoring of the intruder alarm system at Leyland Market,22/09/2017,0000434484,350.00,Revenue,Grantfen Fire & Security Ltd,131572
South Ribble Council,http://statistics.data.gov.uk/doc/local-authority/30UN,Area 2 - Waste Transport/Eastern & Central Teams,Materials General,4040,VARIOUS FILTERS,20/09/2017,0000434588,299.83,Revenue,H & J SERVICES LTD,00114446
South Ribble Council,http://statistics.data.gov.uk/doc/local-authority/30UN,Democratic Services,Other Misc,4970,NAME REDACTED TO ATTEND HALAROSE WORKSHOP AND USER GROUP MEETING ON 6 & 7 JULY 17 AT JURY`S INN,08/09/2017,0000434145,445.00,Revenue,HALAROSE LTD,00024358
South Ribble Council,http://statistics.data.gov.uk/doc/local-authority/30UN,Neighbourhood Admin & Support,Vehicle Running Costs,3132,"15,000 LITRES DIESEL (@94.93 PENCE PER LITRE)",20/09/2017,0000434571,"13,802.41",Revenue,Hall Fuels trading name of WFL (UK) Ltd,00116758
South Ribble Council,http://statistics.data.gov.uk/doc/local-authority/30UN,Neighbourhood Admin & Support,Vehicle Running Costs,3134,"1,500 LITRES GAS OIL (@50.22 PENCE PER LITRE)",20/09/2017,0000434596,752.80,Revenue,Hall Fuels trading name of WFL (UK) Ltd,00116758
South Ribble Council,http://statistics.data.gov.uk/doc/local-authority/30UN,HR & Communications,Training Expense-Course Fees,1402,Planning for Housing Conference NAME REDACTED ILEC London - 04/10/2017,27/09/2017,0000434725,299.00,Revenue,HAYMARKET MEDIA GROUP LTD,00023346
South Ribble Council,http://statistics.data.gov.uk/doc/local-authority/30UN,Property Services,Agency Fees,1121,Staff fees for property maintenance officer from June 2017.,01/09/2017,0000434307,852.13,Revenue,Hays Specialist Recruitment Ltd,132288
South Ribble Council,http://statistics.data.gov.uk/doc/local-authority/30UN,Property Services,Agency Fees,1121,Staff fees for property maintenance officer from June 2017.,06/09/2017,0000434344,"5,000.00",Revenue,Hays Specialist Recruitment Ltd,132288
South Ribble Council,http://statistics.data.gov.uk/doc/local-authority/30UN,Property Services,Agency Fees,1121,Staff fees for property maintenance officer from June 2017.,22/09/2017,0000434477,518.19,Revenue,Hays Specialist Recruitment Ltd,132288
South Ribble Council,http://statistics.data.gov.uk/doc/local-authority/30UN,HR & Communications,Training Expense-Course Fees,1402,"Autumn PA & Administration Conference 2017 NAME REDACTED 23rd November 2017 Leeds, The Met Hotel",29/09/2017,0000434832,256.50,Revenue,HEMSLEY FRASER GROUP LTD,132113
South Ribble Council,http://statistics.data.gov.uk/doc/local-authority/30UN,Property Services,Capital Expenditure,C230,Carry out flexi time and access control up-grades for South Ribble Borough Council as per quotation dated 7th April 2017.,08/09/2017,0000434415,"19,344.88",Revenue,HFX LTD,00023728
South Ribble Council,http://statistics.data.gov.uk/doc/local-authority/30UN,Shared Financial Services,Balance Sheet,0140,Balance Sheet,22/09/2017,0000434399,300.00,Revenue,HM REVENUE & CUSTOMS,00024837
South Ribble Council,http://statistics.data.gov.uk/doc/local-authority/30UN,Revenues Plus,Stationery,4130,"15,000 white self seal window envelopes C5 for Council Tax",13/09/2017,0000434406,328.50,Revenue,HOUND ENVELOPES,00113366
South Ribble Council,http://statistics.data.gov.uk/doc/local-authority/30UN,Area 3 - Parks/Leyland East West,Grounds Maint Cntrctrs Chgs,4657,1x 1200mm high x 3000mm wide IAE combination gate incorporating an IAE Prosafe c/w standard IAE posts & fittings in yellow,27/09/2017,0000434478,"1,067.36",Revenue,IAE,131860
South Ribble Council,http://statistics.data.gov.uk/doc/local-authority/30UN,Area 3 - Parks/Leyland East West,Grounds Maint Cntrctrs Chgs,4657,2x IAE Prosafe Major Repair Kits @ 170.00,27/09/2017,0000434478,340.00,Revenue,IAE,131860
South Ribble Council,http://statistics.data.gov.uk/doc/local-authority/30UN,Area 3 - Parks/Leyland East West,Grounds Maint Cntrctrs Chgs,4657,Carriage,27/09/2017,0000434478,150.00,Revenue,IAE,131860
South Ribble Council,http://statistics.data.gov.uk/doc/local-authority/30UN,Information Services,Capital Expenditure,C234,South Ribble Apps Bundle 160517,08/09/2017,0000434416,600.00,Revenue,IDOX PLC,00104485
South Ribble Council,http://statistics.data.gov.uk/doc/local-authority/30UN,Revenues Plus,Professional Fees,4510,"RV Finder - Gill Lane, Longton",01/09/2017,0000434275,"1,875.00",Revenue,Inform CPI Ltd,131666
South Ribble Council,http://statistics.data.gov.uk/doc/local-authority/30UN,Revenues Plus,Professional Fees,4510,"RV Finder - Liverpool Old Road, Much Hoole",13/09/2017,0000434493,"1,275.00",Revenue,Inform CPI Ltd,131666
South Ribble Council,http://statistics.data.gov.uk/doc/local-authority/30UN,HR & Communications,Agency Fees,1121,26th June - 4th August 2017 Inv.0077,01/09/2017,0000434051,"12,488.10",Revenue,Joanne Platt Associates Ltd,132222
South Ribble Council,http://statistics.data.gov.uk/doc/local-authority/30UN,HR & Communications,Agency Fees,1121,WORK CARRIED OUT FROM 1ST APRIL 2017 UNTIL END OF CONTRACT,20/09/2017,0000434681,"13,584.00",Revenue,Joanne Platt Associates Ltd,132222
South Ribble Council,http://statistics.data.gov.uk/doc/local-authority/30UN,Area 3 - Parks/Leyland East West,Grounds Maint Cntrctrs Chgs,4657,STUMP GRINDING AND MULCHING AT WEST SIDE OF ARBORETUM,13/09/2017,0000434456,400.00,Revenue,JOHN COOPER RECYCLING LTD,130907
South Ribble Council,http://statistics.data.gov.uk/doc/local-authority/30UN,Planning,Other Misc,485R,refund,27/09/2017,0000434575,385.00,Revenue,John Forrester Ltd Trustees Worden Estate,132340
South Ribble Council,http://statistics.data.gov.uk/doc/local-authority/30UN,Area 3 - Parks/Leyland East West,Capital Expenditure,C230,"CONSTRUCTION OF EXTENSION TO REINFORCED GRASS OVERFLOW CAR PARK, WORDEN PARK LEYLAND",13/09/2017,0000434447,"2,990.49",Revenue,John Wade Groundworks Ltd t/a Wade Group,131568
South Ribble Council,http://statistics.data.gov.uk/doc/local-authority/30UN,Legal,Other Misc,4851,Public Notice - Lancashire Evening Post / www.Preston Today As Advert Ref Number: NMC2613709 Print Date  29/08/2017 Size,08/09/2017,0000434318,702.00,Revenue,JOHNSTON PUBLISHING (NORTH WEST),00011345
South Ribble Council,http://statistics.data.gov.uk/doc/local-authority/30UN,Planning,Advertising,4841,Press notices for planning applications,06/09/2017,0000434351,513.00,Revenue,JOHNSTON PUBLISHING (NORTH WEST),00011345
South Ribble Council,http://statistics.data.gov.uk/doc/local-authority/30UN,Planning,Advertising,4841,Press notices for planning applications 2017/18,15/09/2017,0000434420,540.00,Revenue,JOHNSTON PUBLISHING (NORTH WEST),00011345
South Ribble Council,http://statistics.data.gov.uk/doc/local-authority/30UN,Planning,Advertising,4841,Press notices for planning applications 2017/18,15/09/2017,0000434470,567.00,Revenue,JOHNSTON PUBLISHING (NORTH WEST),00011345
South Ribble Council,http://statistics.data.gov.uk/doc/local-authority/30UN,Planning,Advertising,4841,Press notices for planning applications 2017/18,22/09/2017,0000434668,675.00,Revenue,JOHNSTON PUBLISHING (NORTH WEST),00011345
South Ribble Council,http://statistics.data.gov.uk/doc/local-authority/30UN,Planning,Advertising,4841,Press notices for planning applications 2017/18,27/09/2017,0000434772,540.00,Revenue,JOHNSTON PUBLISHING (NORTH WEST),00011345
South Ribble Council,http://statistics.data.gov.uk/doc/local-authority/30UN,Area 2 - Waste Transport/Eastern & Central Teams,External Contractors Charges,4570,SPEC REPAIR - JFC9231 - RV14DTZ - PD,01/09/2017,0000434211,"2,187.34",Revenue,JOHNSTON SWEEPERS LTD,00058926
South Ribble Council,http://statistics.data.gov.uk/doc/local-authority/30UN,Shared Assurance Services,Other Grants and Subscriptions,4741,flood grant,27/09/2017,0000434798,"1,962.34",Revenue,NAME REDACTED,131729
South Ribble Council,http://statistics.data.gov.uk/doc/local-authority/30UN,Planning,Consultancy Fees,4541,Report for Cuerden Strategic Site 07/2017/0211/ORM,13/09/2017,0000434460,"11,063.00",Revenue,Keppie Massie,131948
South Ribble Council,http://statistics.data.gov.uk/doc/local-authority/30UN,Homelessness,Contributions,4730,Key advice and mediation Q3,13/09/2017,0000434469,"5,000.00",Revenue,KEY UNLOCKING FUTURES LTD,00098601
South Ribble Council,http://statistics.data.gov.uk/doc/local-authority/30UN,Planning,Legal,4821,Public Enquiry - Greenbelt Infill SPD - Advice 19/09/2017 - 5.5 hours,27/09/2017,0000434759,412.50,Revenue,Killian Garvey,132097
South Ribble Council,http://statistics.data.gov.uk/doc/local-authority/30UN,Area 3 - Parks/Leyland East West,Grounds Maint Cntrctrs Chgs,4657,1x F12301-01 Upper Park only of Crazy Nellie (M123) Red.,27/09/2017,0000434446,448.00,Revenue,KOMPAN LTD,00026026
South Ribble Council,http://statistics.data.gov.uk/doc/local-authority/30UN,Area 3 - Parks/Leyland East West,Grounds Maint Cntrctrs Chgs,4657,Delivery,27/09/2017,0000434446,40.00,Revenue,KOMPAN LTD,00026026
South Ribble Council,http://statistics.data.gov.uk/doc/local-authority/30UN,Area 2 - Waste Transport/Eastern & Central Teams,External Contractors Charges,4570,SPEC REPAIR - PJ62UCH - JFC9099,15/09/2017,0000434412,"1,345.00",Revenue,Lancashire Waste Services Limited,131510
South Ribble Council,http://statistics.data.gov.uk/doc/local-authority/30UN,Development Enterprise & Comm Mgnt,Other Misc,4851,South Ribble CAB core funding 1st April 2017 - 31st March 2018,13/09/2017,0000434319,"20,000.00",Revenue,LANCASHIRE WEST CITIZENS ADVICE BUREAUX,00017349
South Ribble Council,http://statistics.data.gov.uk/doc/local-authority/30UN,Area 2 - Waste Transport/Eastern & Central Teams,Contractors Charges 5,5412,"Quarter 1 Disposal Fee, Landfill Tax & 5% Admin Fee.",08/09/2017,0000434193,"57,166.92",Revenue,LANCS COUNTY COUNCIL,00041645
South Ribble Council,http://statistics.data.gov.uk/doc/local-authority/30UN,Legal,Other Local Authorities,4530,LAND CHARGES - JUNE 2017,15/09/2017,0000434550,974.50,Revenue,LANCS COUNTY COUNCIL,00041645
South Ribble Council,http://statistics.data.gov.uk/doc/local-authority/30UN,Legal,Other Local Authorities,4530,LAND CHARGES - JULY 2017,15/09/2017,0000434550,"1,268.00",Revenue,LANCS COUNTY COUNCIL,00041645
South Ribble Council,http://statistics.data.gov.uk/doc/local-authority/30UN,Legal,Other Local Authorities,4530,LAND CHARGES - AUGUST 2017,15/09/2017,0000434550,866.00,Revenue,LANCS COUNTY COUNCIL,00041645
South Ribble Council,http://statistics.data.gov.uk/doc/local-authority/30UN,Shared Financial Services,Balance Sheet,0030,Payment over of CIL receipts re City Deal site H2b,20/09/2017,0000434667,"483,448.12",Revenue,LANCS COUNTY COUNCIL,00041645
South Ribble Council,http://statistics.data.gov.uk/doc/local-authority/30UN,Housing,Cap Grant- Improve Grants,C570,Supply and install hoist equipment at ADDRESS REDACTED as per your quote of - 2002.88,27/09/2017,0000434812,"1,914.26",Revenue,LANCS COUNTY COUNCIL,00041645
South Ribble Council,http://statistics.data.gov.uk/doc/local-authority/30UN,Regeneration,Capital Expenditure,C234,32 hours work on Preston Junction Management Plan,20/09/2017,0000434615,888.89,Revenue,LANCS WILDLIFE TRUST,00027009
South Ribble Council,http://statistics.data.gov.uk/doc/local-authority/30UN,Regeneration,Capital Expenditure,C234,8 days - leading Friends Group Preston Junction,20/09/2017,0000434616,"1,666.67",Revenue,LANCS WILDLIFE TRUST,00027009
South Ribble Council,http://statistics.data.gov.uk/doc/local-authority/30UN,Planning,Printing,4125,Lease of printers 2017/18,27/09/2017,0000434779,"1,426.25",Revenue,LDF FINANCE No1 LTD,131373
South Ribble Council,http://statistics.data.gov.uk/doc/local-authority/30UN,Housing,Cap Grant- Improve Grants,C570,DFG WORKS AT ADDRESS REDACTED AS PER YOUR QUOTE OF COST 14949.57,08/09/2017,0000434422,"5,500.00",Revenue,Leigh Property Developments,132302
South Ribble Council,http://statistics.data.gov.uk/doc/local-authority/30UN,Property Services,Advertising,4841,Leyland Market Advert as per NAME REDACTED (Oct Nov Dec),15/09/2017,0000434566,350.00,Revenue,LEYLAND LEADER,00091297
South Ribble Council,http://statistics.data.gov.uk/doc/local-authority/30UN,HR & Communications,Agency Fees,1121,CONSULTANCY SERVICES,20/09/2017,0000434682,"7,520.03",Revenue,Lilja Consulting Ltd,132320
South Ribble Council,http://statistics.data.gov.uk/doc/local-authority/30UN,Housing,Cap Grant- Improve Grants,C570,DFG WORK AT ADDRESS REDACTED,06/09/2017,0000434156,"6,576.57",Revenue,LTL CONSTRUCTION & MAINTENANCE LTD,131406
South Ribble Council,http://statistics.data.gov.uk/doc/local-authority/30UN,Environmental Health,Operational Furniture & Equip,4010,Visit Turbary Woods Bird of Prey Centre to carry out Licensing Special Inspection on 3.8.17 per NAME REDACTED,01/09/2017,0000434177,486.11,Revenue,M J FIELDING,00005526
South Ribble Council,http://statistics.data.gov.uk/doc/local-authority/30UN,Housing,Cap Grant- Improve Grants,C570,DFG WORKS TO PROPERTY AS PER QUOTE ATADDRESS REDACTED COST OF WORK 3630.00,06/09/2017,0000434346,"3,630.00",Revenue,M J PARK,00087434
South Ribble Council,http://statistics.data.gov.uk/doc/local-authority/30UN,Housing,Cap Grant- Improve Grants,C570,DFG Works at ADDRESS REDACTED - 50% of total cost,06/09/2017,0000434315,"3,642.50",Revenue,MAHONEY CONTRACTORS LTD,131271
South Ribble Council,http://statistics.data.gov.uk/doc/local-authority/30UN,Neighbourhood Admin & Support,Materials General,4040,GOLDEN WAY,01/09/2017,0000434274,39.00,Revenue,Main Street Signs Ltd,131922
South Ribble Council,http://statistics.data.gov.uk/doc/local-authority/30UN,Neighbourhood Admin & Support,Materials General,4040,BRYDECK AVENUE  T,01/09/2017,0000434274,46.00,Revenue,Main Street Signs Ltd,131922
South Ribble Council,http://statistics.data.gov.uk/doc/local-authority/30UN,Neighbourhood Admin & Support,Materials General,4040,VICTORY LANE   T,01/09/2017,0000434274,14.00,Revenue,Main Street Signs Ltd,131922
South Ribble Council,http://statistics.data.gov.uk/doc/local-authority/30UN,Neighbourhood Admin & Support,Materials General,4040,MANOR LANE,01/09/2017,0000434274,39.00,Revenue,Main Street Signs Ltd,131922
South Ribble Council,http://statistics.data.gov.uk/doc/local-authority/30UN,Neighbourhood Admin & Support,Materials General,4040,LONGFIELD,01/09/2017,0000434274,78.00,Revenue,Main Street Signs Ltd,131922
South Ribble Council,http://statistics.data.gov.uk/doc/local-authority/30UN,Neighbourhood Admin & Support,Materials General,4040,BOW LANE  T   42-44,01/09/2017,0000434274,45.00,Revenue,Main Street Signs Ltd,131922
South Ribble Council,http://statistics.data.gov.uk/doc/local-authority/30UN,Neighbourhood Admin & Support,Materials General,4040,ORCHARD AVENUE  T,01/09/2017,0000434274,46.00,Revenue,Main Street Signs Ltd,131922
South Ribble Council,http://statistics.data.gov.uk/doc/local-authority/30UN,Neighbourhood Admin & Support,Materials General,4040,STANLEY STREET,01/09/2017,0000434274,43.00,Revenue,Main Street Signs Ltd,131922
South Ribble Council,http://statistics.data.gov.uk/doc/local-authority/30UN,Neighbourhood Admin & Support,Materials General,4040,SKIP LANE,01/09/2017,0000434274,76.00,Revenue,Main Street Signs Ltd,131922
South Ribble Council,http://statistics.data.gov.uk/doc/local-authority/30UN,Neighbourhood Admin & Support,Materials General,4040,LINKS ROAD   T,01/09/2017,0000434274,42.00,Revenue,Main Street Signs Ltd,131922
South Ribble Council,http://statistics.data.gov.uk/doc/local-authority/30UN,Neighbourhood Admin & Support,Materials General,4040,RYDEN AVENUE,01/09/2017,0000434274,41.00,Revenue,Main Street Signs Ltd,131922
South Ribble Council,http://statistics.data.gov.uk/doc/local-authority/30UN,Neighbourhood Admin & Support,Materials General,4040,DELIVERY CHARGE,01/09/2017,0000434274,39.50,Revenue,Main Street Signs Ltd,131922
South Ribble Council,http://statistics.data.gov.uk/doc/local-authority/30UN,Property Services,Rep & Maint Premises,2020,labour,27/09/2017,0000434544,"1,899.00",Revenue,MAINCOAT LTD,00099244
South Ribble Council,http://statistics.data.gov.uk/doc/local-authority/30UN,Property Services,Rep & Maint Premises,2020,materials,27/09/2017,0000434544,"1,266.00",Revenue,MAINCOAT LTD,00099244
South Ribble Council,http://statistics.data.gov.uk/doc/local-authority/30UN,Area 3 - Parks/Leyland East West,Materials General,4040,Supply FOT - 751 Aluminium socketed 24x8 football goal package,13/09/2017,0000434458,925.00,Revenue,MARK HARROD LIMITED,00119632
South Ribble Council,http://statistics.data.gov.uk/doc/local-authority/30UN,Area 3 - Parks/Leyland East West,Materials General,4040,Delivery,13/09/2017,0000434458,120.00,Revenue,MARK HARROD LIMITED,00119632
South Ribble Council,http://statistics.data.gov.uk/doc/local-authority/30UN,Area 3 - Parks/Leyland East West,Materials General,4040,1 X FOT-526 EXTRA HEAVY DUTY 16` X 7` GOAL POST.,15/09/2017,0000434572,585.00,Revenue,MARK HARROD LIMITED,00119632
South Ribble Council,http://statistics.data.gov.uk/doc/local-authority/30UN,Area 2 - Waste Transport/Eastern & Central Teams,External Contractors Charges,4570,"Recovery of YP11 CFM, JFC9308, (NAME REDACTED)",27/09/2017,0000434672,"1,146.00",Revenue,MILLERS OF LONGTON LTD,00028642
South Ribble Council,http://statistics.data.gov.uk/doc/local-authority/30UN,Area 2 - Waste Transport/Eastern & Central Teams,Materials General,4040,"ECU Unit PJ62 UCL, JFC9299 (NAME REDACTED)",20/09/2017,0000434659,"1,107.80",Revenue,MITCHELL POWERSYTEMS,00077282
South Ribble Council,http://statistics.data.gov.uk/doc/local-authority/30UN,Revenues Plus,Agency Fees,1121,NAME REDACTED for August  2017,01/09/2017,0000434283,927.00,Revenue,MORGAN HUNT PUBLIC SECTOR LTD,00120401
South Ribble Council,http://statistics.data.gov.uk/doc/local-authority/30UN,Revenues Plus,Agency Fees,1121,NAME REDACTED for August  2017,08/09/2017,0000434411,721.00,Revenue,MORGAN HUNT PUBLIC SECTOR LTD,00120401
South Ribble Council,http://statistics.data.gov.uk/doc/local-authority/30UN,Revenues Plus,Agency Fees,1121,NAME REDACTED Sept 2017,22/09/2017,0000434723,972.06,Revenue,MORGAN HUNT PUBLIC SECTOR LTD,00120401
South Ribble Council,http://statistics.data.gov.uk/doc/local-authority/30UN,Revenues Plus,Agency Fees,1121,NAME REDACTED Sept 2017,22/09/2017,0000434742,727.44,Revenue,MORGAN HUNT PUBLIC SECTOR LTD,00120401
South Ribble Council,http://statistics.data.gov.uk/doc/local-authority/30UN,Revenues Plus,Agency Fees,1121,NAME REDACTED Sept 2017,29/09/2017,0000434831,"1,004.25",Revenue,MORGAN HUNT PUBLIC SECTOR LTD,00120401
South Ribble Council,http://statistics.data.gov.uk/doc/local-authority/30UN,Area 1 - Penwortham Western Parishes,Professional Fees,4521,PROVISION OF STRAY DOG SERVICE - TO COVER JULY 2017,08/09/2017,0000434378,292.58,Revenue,MORNINGSIDE KENNELS,00067755
South Ribble Council,http://statistics.data.gov.uk/doc/local-authority/30UN,Legal,Consultancy Fees,4541,Shared Services advice - 15.09.17,27/09/2017,0000434755,"1,000.00",Revenue,Mr Alan Evans,131944
South Ribble Council,http://statistics.data.gov.uk/doc/local-authority/30UN,Development Enterprise & Comm Mgnt,Legal,4821,Perusing papers and advising in conference 3hrs - con 2hrs 1 Hr reviewing a schedule of draft conditions,15/09/2017,0000434513,"1,350.00",Revenue,MR IAN PONTER,131194
South Ribble Council,http://statistics.data.gov.uk/doc/local-authority/30UN,Shared Assurance Services,Other Grants and Subscriptions,4741,flood grant,27/09/2017,0000434769,"4,706.00",Revenue,NAME REDACTED,131735
South Ribble Council,http://statistics.data.gov.uk/doc/local-authority/30UN,Shared Assurance Services,Other Misc,4851,flood grant,20/09/2017,0000434512,955.58,Revenue,NAME REDACTED,131754
South Ribble Council,http://statistics.data.gov.uk/doc/local-authority/30UN,Shared Assurance Services,Other Grants and Subscriptions,4741,flood grant,27/09/2017,0000434768,"3,974.32",Revenue,NAME REDACTED,131766
South Ribble Council,http://statistics.data.gov.uk/doc/local-authority/30UN,Shared Assurance Services,Other Grants and Subscriptions,4741,flood grant,27/09/2017,0000434722,"4,706.00",Revenue,NAME REDACTED,131906
South Ribble Council,http://statistics.data.gov.uk/doc/local-authority/30UN,Shared Assurance Services,Other Grants and Subscriptions,4741,flood grant,27/09/2017,0000434778,"4,706.00",Revenue,NAME REDACTED,131885
South Ribble Council,http://statistics.data.gov.uk/doc/local-authority/30UN,Shared Assurance Services,Other Grants and Subscriptions,4741,flood grant,27/09/2017,0000434799,"1,662.34",Revenue,NAME REDACTED,131769
South Ribble Council,http://statistics.data.gov.uk/doc/local-authority/30UN,Area 2 - Waste Transport/Eastern & Central Teams,External Contractors Charges,4570,STEAM CLEAN - JFC8998 - VO65KPX - PD,13/09/2017,0000434354,75.00,Revenue,NAYLORS TRANSPORT (LEYLAND) ltd,00114828
South Ribble Council,http://statistics.data.gov.uk/doc/local-authority/30UN,Area 2 - Waste Transport/Eastern & Central Teams,External Contractors Charges,4570,STEAM CLEAN - JFC8999 - PJ62UCL - PD,13/09/2017,0000434354,65.00,Revenue,NAYLORS TRANSPORT (LEYLAND) ltd,00114828
South Ribble Council,http://statistics.data.gov.uk/doc/local-authority/30UN,Area 2 - Waste Transport/Eastern & Central Teams,External Contractors Charges,4570,STEAM CLEAN - JFC9000 - VO65KRF - PD,13/09/2017,0000434354,65.00,Revenue,NAYLORS TRANSPORT (LEYLAND) ltd,00114828
South Ribble Council,http://statistics.data.gov.uk/doc/local-authority/30UN,Area 2 - Waste Transport/Eastern & Central Teams,External Contractors Charges,4570,STEAM CLEAN - JFC9001 - VK09AHJ - PD,13/09/2017,0000434354,65.00,Revenue,NAYLORS TRANSPORT (LEYLAND) ltd,00114828
South Ribble Council,http://statistics.data.gov.uk/doc/local-authority/30UN,Area 2 - Waste Transport/Eastern & Central Teams,External Contractors Charges,4570,STEAM CLEAN - JFC9002 - VN10DKL - PD,13/09/2017,0000434354,65.00,Revenue,NAYLORS TRANSPORT (LEYLAND) ltd,00114828
South Ribble Council,http://statistics.data.gov.uk/doc/local-authority/30UN,Area 2 - Waste Transport/Eastern & Central Teams,External Contractors Charges,4570,STEAM CLEAN - JFC9003 - VO65KPZ - PD,13/09/2017,0000434354,65.00,Revenue,NAYLORS TRANSPORT (LEYLAND) ltd,00114828
South Ribble Council,http://statistics.data.gov.uk/doc/local-authority/30UN,Area 2 - Waste Transport/Eastern & Central Teams,External Contractors Charges,4570,STEAM CLEAN - JFC9004 - PJ62UCM - PF,13/09/2017,0000434354,65.00,Revenue,NAYLORS TRANSPORT (LEYLAND) ltd,00114828
South Ribble Council,http://statistics.data.gov.uk/doc/local-authority/30UN,Area 2 - Waste Transport/Eastern & Central Teams,External Contractors Charges,4570,STEAM CLEAN - VO65KRD - JFC8831 (1/8),13/09/2017,0000434354,65.00,Revenue,NAYLORS TRANSPORT (LEYLAND) ltd,00114828
South Ribble Council,http://statistics.data.gov.uk/doc/local-authority/30UN,Area 2 - Waste Transport/Eastern & Central Teams,External Contractors Charges,4570,STEAM CLEAN - PJ62UCH - JFC8832 (2/8),13/09/2017,0000434354,65.00,Revenue,NAYLORS TRANSPORT (LEYLAND) ltd,00114828
South Ribble Council,http://statistics.data.gov.uk/doc/local-authority/30UN,Area 2 - Waste Transport/Eastern & Central Teams,External Contractors Charges,4570,STEAM CLEAN - RV14DTZ - JFC8833 (4/8),13/09/2017,0000434354,65.00,Revenue,NAYLORS TRANSPORT (LEYLAND) ltd,00114828
South Ribble Council,http://statistics.data.gov.uk/doc/local-authority/30UN,Property Services,Client Internal Charges,4590,2017 / 2018 fees for the front end loader weekly exchange at Leyland Market,22/09/2017,0000434482,466.40,Revenue,NEALES WASTE MANAGEMENT,130129
South Ribble Council,http://statistics.data.gov.uk/doc/local-authority/30UN,HR & Communications,Peripherals,4242,EXTENSION OF JOB EVALUATION AGREEMENT FOR FURTHER 36 MONTH INDEXATION UPLIFT FOR CURRENT YEAR,01/09/2017,0000434287,"3,037.80",Revenue,NORTHGATE ARINSO UK LTD,00094414
South Ribble Council,http://statistics.data.gov.uk/doc/local-authority/30UN,Area 1 - Penwortham Western Parishes,Professional Fees,4514,DEPLOYMENT OF OFFICERS AUGUST 2017,15/09/2017,0000434579,"1,345.06",Revenue,NSL LTD,00116868
South Ribble Council,http://statistics.data.gov.uk/doc/local-authority/30UN,Area 1 - Penwortham Western Parishes,Other Misc,4855,CASH COLLECTION & RING-GO CHARGES AUGUST 2017,15/09/2017,0000434579,373.92,Revenue,NSL LTD,00116868
South Ribble Council,http://statistics.data.gov.uk/doc/local-authority/30UN,Information Services,Peripherals,4246,"VMware maintenance for period 09/11/17 - 08/11/18, as per quote",15/09/2017,0000434560,"7,403.63",Revenue,NVIRON LTD,00028781
South Ribble Council,http://statistics.data.gov.uk/doc/local-authority/30UN,Homelessness,Contributions,4730,landlords incentive scheme clear former rent arrears ADDRESS REDACTED agreed with Contour Homes,20/09/2017,0000434569,"1,200.00",Revenue,Onward Homes Ltd,130841
South Ribble Council,http://statistics.data.gov.uk/doc/local-authority/30UN,Area 1 - Penwortham Western Parishes,Materials General,4040,60000 Stelio self adhesive tickets @ 6.95 per 1000,20/09/2017,0000434578,417.00,Revenue,PAPERWORK UK LTD,00108834
South Ribble Council,http://statistics.data.gov.uk/doc/local-authority/30UN,Area 1 - Penwortham Western Parishes,Operational Furniture & Equip,4013,Coin Upgrade on 2 machines Leyland Railway Station as per quotation PS/36/0845,06/09/2017,0000434017,500.00,Revenue,PARKEON LTD,00082918
South Ribble Council,http://statistics.data.gov.uk/doc/local-authority/30UN,Area 1 - Penwortham Western Parishes,Operational Furniture & Equip,4013,Coin Upgrade to 7 Pay & Display Machines to accept new 1 coin as per your Quotation PS/36/0845,06/09/2017,0000434018,"2,250.00",Revenue,PARKEON LTD,00082918
South Ribble Council,http://statistics.data.gov.uk/doc/local-authority/30UN,Shared Assurance Services,Other Misc,4851,flood grant,20/09/2017,0000434511,"3,900.00",Revenue,NAME REDACTED,132176
South Ribble Council,http://statistics.data.gov.uk/doc/local-authority/30UN,Regeneration,External Contractors Charges,4575,External Catering 8th Sept 2017  Pastries x 125  Cakes x 125,29/09/2017,0000434609,250.00,Revenue,Penningtons Catering Ltd,131684
South Ribble Council,http://statistics.data.gov.uk/doc/local-authority/30UN,Development Enterprise & Comm Mgnt,Balance Sheet,0030,Dal use recharges 36000.00 payable by 12 payments of 3000.00,29/09/2017,0000434117,"15,000.00",Revenue,PENWORTHAM PRIORY ACADEMY,130720
South Ribble Council,http://statistics.data.gov.uk/doc/local-authority/30UN,Development Enterprise & Comm Mgnt,Balance Sheet,0030,"Dual Use Charges 1 payment of 36,000",29/09/2017,0000434118,"21,000.00",Revenue,PENWORTHAM PRIORY ACADEMY,130720
South Ribble Council,http://statistics.data.gov.uk/doc/local-authority/30UN,Neighbourhood Admin & Support,Vehicle Running Costs,3132,FUEL FOR AUGUST 2017,20/09/2017,0000434589,378.47,Revenue,PETROMEX MILLBROOK WAY SERVICE STATION,00062572
South Ribble Council,http://statistics.data.gov.uk/doc/local-authority/30UN,Area 2 - Waste Transport/Eastern & Central Teams,Materials General,4040,800 Hyd 32 @ 63 ppl = 504.00 500 15/40 @ 82 ppl = 410.00 1 box ep2 @ 1.19 per cart. = 42.84,15/09/2017,0000434583,465.14,Revenue,PILKINGTON OILS,00113531
South Ribble Council,http://statistics.data.gov.uk/doc/local-authority/30UN,Area 2 - Waste Transport/Eastern & Central Teams,Materials General,4040,800 Hyd 32 @ 63 ppl = 504.00 500 15/40 @ 82 ppl = 410.00 1 box ep2 @ 1.19 per cart. = 42.84,20/09/2017,0000434594,517.86,Revenue,PILKINGTON OILS,00113531
South Ribble Council,http://statistics.data.gov.uk/doc/local-authority/30UN,Development Enterprise & Comm Mgnt,Advertising,4841,Job advert on Place North West : Large Sites Development Officer,01/09/2017,0000433117,300.00,Revenue,PLACE NORTH WEST,131307
South Ribble Council,http://statistics.data.gov.uk/doc/local-authority/30UN,Information Services,Peripherals,4247,6 x HPE LTO-7 Ultrium (part code C7977A) @ 67.00 each,06/09/2017,0000434349,402.00,Revenue,PMD MAGNETICS,00115063
South Ribble Council,http://statistics.data.gov.uk/doc/local-authority/30UN,Information Services,Peripherals,4247,1 HappyOrNot device on a 1 year contract at 99.00 per month,01/09/2017,0000434213,"1,188.00",Revenue,PosHardwareLtd,132332
South Ribble Council,http://statistics.data.gov.uk/doc/local-authority/30UN,Area 2 - Waste Transport/Eastern & Central Teams,Vehicle Running Costs,3137,Vehicle Running Costs,13/09/2017,0000434497,650.00,Revenue,POST OFFICE LTD,00031354
South Ribble Council,http://statistics.data.gov.uk/doc/local-authority/30UN,Area 2 - Waste Transport/Eastern & Central Teams,Vehicle Running Costs,3137,Vehicle Running Costs,13/09/2017,0000434497,240.00,Revenue,POST OFFICE LTD,00031354
South Ribble Council,http://statistics.data.gov.uk/doc/local-authority/30UN,Area 2 - Waste Transport/Eastern & Central Teams,Vehicle Running Costs,3137,Vehicle Running Costs,13/09/2017,0000434497,240.00,Revenue,POST OFFICE LTD,00031354
South Ribble Council,http://statistics.data.gov.uk/doc/local-authority/30UN,Area 2 - Waste Transport/Eastern & Central Teams,Vehicle Running Costs,3137,Vehicle Running Costs,13/09/2017,0000434497,240.00,Revenue,POST OFFICE LTD,00031354
South Ribble Council,http://statistics.data.gov.uk/doc/local-authority/30UN,Area 2 - Waste Transport/Eastern & Central Teams,Vehicle Running Costs,3137,Vehicle Running Costs,13/09/2017,0000434497,240.00,Revenue,POST OFFICE LTD,00031354
South Ribble Council,http://statistics.data.gov.uk/doc/local-authority/30UN,Area 2 - Waste Transport/Eastern & Central Teams,Vehicle Running Costs,3137,Vehicle Running Costs,13/09/2017,0000434497,240.00,Revenue,POST OFFICE LTD,00031354
South Ribble Council,http://statistics.data.gov.uk/doc/local-authority/30UN,Area 2 - Waste Transport/Eastern & Central Teams,Vehicle Running Costs,3137,Vehicle Running Costs,13/09/2017,0000434497,240.00,Revenue,POST OFFICE LTD,00031354
South Ribble Council,http://statistics.data.gov.uk/doc/local-authority/30UN,Chief Executive`s Management,Operational Furniture & Equip,4010,"Executive Leather High Back Chair, Soft Padded  Arms, Lock Tilt Mechanism, Black 2 x Next Day @ 125.00 each",27/09/2017,0000434309,250.00,Revenue,PREMIER OFFICE SUPPLES (UK) LTD,00090159
South Ribble Council,http://statistics.data.gov.uk/doc/local-authority/30UN,Chief Executive`s Management,Operational Furniture & Equip,4010,Encounter Soft Seating Single Tub Seat In Black Leather x 2 @ 155.00 each,27/09/2017,0000434309,310.00,Revenue,PREMIER OFFICE SUPPLES (UK) LTD,00090159
South Ribble Council,http://statistics.data.gov.uk/doc/local-authority/30UN,Information Services,Stationery,4133,"50,000 sheets Evolution Everyday A4 80gm 2500 sheets Green A4 80gm 2500 sheets  Canary A4 80gm 1000 sheets White A4 ",13/09/2017,0000434421,289.42,Revenue,PREMIER PAPER GROUP LTD,00022606
South Ribble Council,http://statistics.data.gov.uk/doc/local-authority/30UN,Housing,Licence Fees,4884,Strategic Housing Market Assessment,15/09/2017,0000434465,"8,546.33",Revenue,Preston City Council,131913
South Ribble Council,http://statistics.data.gov.uk/doc/local-authority/30UN,Area 2 - Waste Transport/Eastern & Central Teams,External Contractors Charges,4570,TR178 x 8 tyres,15/09/2017,0000434525,641.26,Revenue,PRESTON TYRE SPECIALISTS,00109516
South Ribble Council,http://statistics.data.gov.uk/doc/local-authority/30UN,Democratic Services,Printing,4127,"12,000 - SOUTH RIBBLE HEF OUTGOING ENVELOPES",08/09/2017,0000434119,435.40,Revenue,PRINT IMAGE NETWORK LTD,00089199
South Ribble Council,http://statistics.data.gov.uk/doc/local-authority/30UN,Democratic Services,Printing,4127,"1st Reminder Run 2,109.40 Delivery - 1st Reminder - 275.00 (SG03/083669/) - See PUR0030351 - same order",15/09/2017,0000434555,"2,384.40",Revenue,PRINT IMAGE NETWORK LTD,00089199
South Ribble Council,http://statistics.data.gov.uk/doc/local-authority/30UN,Democratic Services,Printing,4127,"13,000 2017 A6 CALLING CARDS - 771.33  ARTWORK - 45.00",27/09/2017,0000434785,816.33,Revenue,PRINT IMAGE NETWORK LTD,00089199
South Ribble Council,http://statistics.data.gov.uk/doc/local-authority/30UN,Democratic Services,Printing,4127,"2nd Reminder Run - 1,172.38 Delivery - 275.00 (SGO3/083669/) (see PUR0030351 & PUR0031340 for ref)",29/09/2017,0000434873,"1,447.38",Revenue,PRINT IMAGE NETWORK LTD,00089199
South Ribble Council,http://statistics.data.gov.uk/doc/local-authority/30UN,Area 2 - Waste Transport/Eastern & Central Teams,Agency Fees,1121,TEMPORARY FITTER - TO COVER 14/8/17 UNTIL END OF AUGUST 2018 (19.23 PER HOUR X 40 HOURS PER WEEK),01/09/2017,0000434286,769.20,Revenue,Proactive Personnel Limited,131697
South Ribble Council,http://statistics.data.gov.uk/doc/local-authority/30UN,Area 2 - Waste Transport/Eastern & Central Teams,Agency Fees,1121,TEMPORARY FITTER - TO COVER 14/8/17 UNTIL END OF AUGUST 2018 (19.23 PER HOUR X 40 HOURS PER WEEK),13/09/2017,0000434430,538.44,Revenue,Proactive Personnel Limited,131697
South Ribble Council,http://statistics.data.gov.uk/doc/local-authority/30UN,Area 3 - Parks/Leyland East West,Rep & Maint Premises,2020,"Building Works and Plumbing at the Vine House, Worden Park Walled Garden.",06/09/2017,0000434192,"1,500.00",Revenue,RED ROSE BUILDING MAINTENANCE,00085410
South Ribble Council,http://statistics.data.gov.uk/doc/local-authority/30UN,Area 3 - Parks/Leyland East West,Rep & Maint Premises,2020,materials,06/09/2017,0000434192,500.00,Revenue,RED ROSE BUILDING MAINTENANCE,00085410
South Ribble Council,http://statistics.data.gov.uk/doc/local-authority/30UN,Homelessness,Contractors Charges 5,5311,"OSM payment October, November, December 2017",22/09/2017,0000434613,"5,624.90",Revenue,REDDY & CO,00108177
South Ribble Council,http://statistics.data.gov.uk/doc/local-authority/30UN,HR & Communications,Payroll Suspense,1741,SUBSCRIPTION FOR XPERT HR 29TH JULY 2017 - 28TH JULY 2018,08/09/2017,0000434402,"2,150.00",Revenue,REED BUSINESS INFORMATION LTD,00033051
South Ribble Council,http://statistics.data.gov.uk/doc/local-authority/30UN,Area 3 - Parks/Leyland East West,Grounds Maint Cntrctrs Chgs,4657,"Excavation and investigation of suspected failed pipe, Shruggs Wood, Leyland.",27/09/2017,0000434737,"1,560.00",Revenue,Reid Construction & Civil Engineering Ltd,131544
South Ribble Council,http://statistics.data.gov.uk/doc/local-authority/30UN,Area 3 - Parks/Leyland East West,Grounds Maint Cntrctrs Chgs,4657,materials,27/09/2017,0000434737,"1,923.00",Revenue,Reid Construction & Civil Engineering Ltd,131544
South Ribble Council,http://statistics.data.gov.uk/doc/local-authority/30UN,Area 3 - Parks/Leyland East West,Capital Expenditure,C234,SUPPLY AND FIT ADDITIONAL BOTTOM RAIL TO HEADWALL SCREEN GATE.,27/09/2017,0000434739,425.00,Revenue,Reid Construction & Civil Engineering Ltd,131544
South Ribble Council,http://statistics.data.gov.uk/doc/local-authority/30UN,Shared Financial Services,Expenditure not in NCOS,4994,,13/09/2017,0000434492,"111,633.00",Revenue,Ribble Valley Borough Council,131651
South Ribble Council,http://statistics.data.gov.uk/doc/local-authority/30UN,Area 2 - Waste Transport/Eastern & Central Teams,External Contractors Charges,4570,"1 spec repair, BJ17 RLX, JFC8797, (NAME REDACTED)",13/09/2017,0000434314,578.97,Revenue,RIBBLESDALE AUTO ELECTRICS 1992 LTD,00033129
South Ribble Council,http://statistics.data.gov.uk/doc/local-authority/30UN,Information Services,Lease Rental Charges,4036,Lease Rental Charges,15/09/2017,0000434540,"1,300.83",Revenue,RICOH (UK) LTD,00082976
South Ribble Council,http://statistics.data.gov.uk/doc/local-authority/30UN,Property Services,Other Misc,485C,Service charges for units 1 - 6 Momentum Place for quarter ending December 2017,13/09/2017,0000434364,100.00,Revenue,ROUNDHOUSE MOMENTUM DEVELOPMENTS LTD,131973
South Ribble Council,http://statistics.data.gov.uk/doc/local-authority/30UN,Property Services,Other Misc,485C,Service charges for units 1 - 6 Momentum Place for quarter ending December 2017,13/09/2017,0000434364,100.00,Revenue,ROUNDHOUSE MOMENTUM DEVELOPMENTS LTD,131973
South Ribble Council,http://statistics.data.gov.uk/doc/local-authority/30UN,Property Services,Other Misc,485C,Service charges for units 1 - 6 Momentum Place for quarter ending December 2017,13/09/2017,0000434364,100.00,Revenue,ROUNDHOUSE MOMENTUM DEVELOPMENTS LTD,131973
South Ribble Council,http://statistics.data.gov.uk/doc/local-authority/30UN,Property Services,Other Misc,485C,Service charges for units 1 - 6 Momentum Place for quarter ending December 2017,13/09/2017,0000434364,100.00,Revenue,ROUNDHOUSE MOMENTUM DEVELOPMENTS LTD,131973
South Ribble Council,http://statistics.data.gov.uk/doc/local-authority/30UN,Property Services,Other Misc,485C,Service charges for units 1 - 6 Momentum Place for quarter ending December 2017,13/09/2017,0000434364,100.00,Revenue,ROUNDHOUSE MOMENTUM DEVELOPMENTS LTD,131973
South Ribble Council,http://statistics.data.gov.uk/doc/local-authority/30UN,Area 3 - Parks/Leyland East West,Grounds Maint Cntrctrs Chgs,4657,120m Pre Established Coir Pallets with Standard Species Mix.,06/09/2017,0000434199,"2,862.00",Revenue,SALIX RIVER & WETLAND SERVICES LTD,00113285
South Ribble Council,http://statistics.data.gov.uk/doc/local-authority/30UN,Area 3 - Parks/Leyland East West,Grounds Maint Cntrctrs Chgs,4657,150mm Wooden T Pegs,06/09/2017,0000434199,60.00,Revenue,SALIX RIVER & WETLAND SERVICES LTD,00113285
South Ribble Council,http://statistics.data.gov.uk/doc/local-authority/30UN,Area 3 - Parks/Leyland East West,Grounds Maint Cntrctrs Chgs,4657,Delivery to PR26 7QR - Please call 01772 625561 24hrs prior so off lift can be arranged.,06/09/2017,0000434199,180.00,Revenue,SALIX RIVER & WETLAND SERVICES LTD,00113285
South Ribble Council,http://statistics.data.gov.uk/doc/local-authority/30UN,Property Services,Energy Costs,2303,credit 881676422 /0005 to cancel this invoice,01/09/2017,0000434285,651.80,Revenue,SCOTTISH HYDRO ELECTRIC,130051
South Ribble Council,http://statistics.data.gov.uk/doc/local-authority/30UN,Property Services,Energy Costs,2307,CCL,01/09/2017,0000434285,31.08,Revenue,SCOTTISH HYDRO ELECTRIC,130051
South Ribble Council,http://statistics.data.gov.uk/doc/local-authority/30UN,Property Services,Energy Costs,2304,4/8/17 to 4/9/17,13/09/2017,0000434450,481.62,Revenue,SCOTTISH HYDRO ELECTRIC,130051
South Ribble Council,http://statistics.data.gov.uk/doc/local-authority/30UN,Property Services,Energy Costs,2304,1/6/17 to 30/8/17,13/09/2017,0000434451,688.03,Revenue,SCOTTISH HYDRO ELECTRIC,130051
South Ribble Council,http://statistics.data.gov.uk/doc/local-authority/30UN,Property Services,Energy Costs,2307,CCL,13/09/2017,0000434451,26.61,Revenue,SCOTTISH HYDRO ELECTRIC,130051
South Ribble Council,http://statistics.data.gov.uk/doc/local-authority/30UN,Property Services,Energy Costs,2304,14/6/17 to 30/,13/09/2017,0000434452,462.00,Revenue,SCOTTISH HYDRO ELECTRIC,130051
South Ribble Council,http://statistics.data.gov.uk/doc/local-authority/30UN,Property Services,Energy Costs,2307,CCL,22/09/2017,0000434648,17.23,Revenue,SCOTTISH HYDRO ELECTRIC,130051
South Ribble Council,http://statistics.data.gov.uk/doc/local-authority/30UN,Property Services,Energy Costs,2303,1/8/17 to 31/8/17,22/09/2017,0000434648,356.25,Revenue,SCOTTISH HYDRO ELECTRIC,130051
South Ribble Council,http://statistics.data.gov.uk/doc/local-authority/30UN,Property Services,Energy Costs,2307,CCL,22/09/2017,0000434649,19.85,Revenue,SCOTTISH HYDRO ELECTRIC,130051
South Ribble Council,http://statistics.data.gov.uk/doc/local-authority/30UN,Property Services,Energy Costs,2303,7/6/17 to 1/9/17,22/09/2017,0000434649,400.46,Revenue,SCOTTISH HYDRO ELECTRIC,130051
South Ribble Council,http://statistics.data.gov.uk/doc/local-authority/30UN,Property Services,Energy Costs,2307,CCL,22/09/2017,0000434650,167.17,Revenue,SCOTTISH HYDRO ELECTRIC,130051
South Ribble Council,http://statistics.data.gov.uk/doc/local-authority/30UN,Property Services,Energy Costs,2303,1/8/17 to 31/8/17,22/09/2017,0000434650,"3,131.30",Revenue,SCOTTISH HYDRO ELECTRIC,130051
South Ribble Council,http://statistics.data.gov.uk/doc/local-authority/30UN,Property Services,Energy Costs,2307,CCL,22/09/2017,0000434651,27.46,Revenue,SCOTTISH HYDRO ELECTRIC,130051
South Ribble Council,http://statistics.data.gov.uk/doc/local-authority/30UN,Property Services,Energy Costs,2303,17/6/17 to 4/9/17,22/09/2017,0000434651,587.61,Revenue,SCOTTISH HYDRO ELECTRIC,130051
South Ribble Council,http://statistics.data.gov.uk/doc/local-authority/30UN,Property Services,Energy Costs,2307,CCL,22/09/2017,0000434655,94.82,Revenue,SCOTTISH HYDRO ELECTRIC,130051
South Ribble Council,http://statistics.data.gov.uk/doc/local-authority/30UN,Property Services,Energy Costs,2303,1/8/17 to 31/8/17,22/09/2017,0000434655,"1,721.29",Revenue,SCOTTISH HYDRO ELECTRIC,130051
South Ribble Council,http://statistics.data.gov.uk/doc/local-authority/30UN,Property Services,Energy Costs,2307,CCL,22/09/2017,0000434656,49.78,Revenue,SCOTTISH HYDRO ELECTRIC,130051
South Ribble Council,http://statistics.data.gov.uk/doc/local-authority/30UN,Property Services,Energy Costs,2303,1/8/17 to 31/8/17,22/09/2017,0000434656,964.35,Revenue,SCOTTISH HYDRO ELECTRIC,130051
South Ribble Council,http://statistics.data.gov.uk/doc/local-authority/30UN,Property Services,Energy Costs,2304,4/8/17 to 4/9/17,27/09/2017,0000434749,481.62,Revenue,SCOTTISH HYDRO ELECTRIC,130051
South Ribble Council,http://statistics.data.gov.uk/doc/local-authority/30UN,Property Services,Energy Costs,2304,1/6/17 to 30/8/17,27/09/2017,0000434750,688.03,Revenue,SCOTTISH HYDRO ELECTRIC,130051
South Ribble Council,http://statistics.data.gov.uk/doc/local-authority/30UN,Property Services,Energy Costs,2307,CCL,27/09/2017,0000434750,26.61,Revenue,SCOTTISH HYDRO ELECTRIC,130051
South Ribble Council,http://statistics.data.gov.uk/doc/local-authority/30UN,Property Services,Energy Costs,2304,14/6/17 to 30/8/17,27/09/2017,0000434751,462.00,Revenue,SCOTTISH HYDRO ELECTRIC,130051
South Ribble Council,http://statistics.data.gov.uk/doc/local-authority/30UN,Healthy Communities,Consultancy Fees,4536,R & M 2017/18,01/09/2017,0000433406,"65,027.15",Revenue,SERCO LEISURE (OP) LTD,00094906
South Ribble Council,http://statistics.data.gov.uk/doc/local-authority/30UN,Information Services,Professional Fees,4520,Shredding of Confidential Waste 2017/18,08/09/2017,0000434313,272.11,Revenue,SHRED-IT LTD,00109134
South Ribble Council,http://statistics.data.gov.uk/doc/local-authority/30UN,Information Services,Professional Fees,4520,Shredding of Confidential Waste 2017/18,20/09/2017,0000434619,394.32,Revenue,SHRED-IT LTD,00109134
South Ribble Council,http://statistics.data.gov.uk/doc/local-authority/30UN,Information Services,Capital Expenditure,C234,Good Professional Services. One day onsite / remote plus Travel expenses (Travel expenses billed post services delivery) ,06/09/2017,0000434387,"2,300.00",Revenue,SOFTCAT LIMITED,130963
South Ribble Council,http://statistics.data.gov.uk/doc/local-authority/30UN,HR & Communications,Payroll Suspense,1741,SOLACE Membership for NAME REDACTED for 2017/2018,27/09/2017,0000434726,398.00,Revenue,SOLACE,00105400
South Ribble Council,http://statistics.data.gov.uk/doc/local-authority/30UN,Healthy Communities,Consultancy Fees,4532,Leisure Services Fee 2017/18,20/09/2017,0000434418,"15,778.33",Revenue,SOUTH RIBBLE COMMUNITY LEISURE LTD,00094210
South Ribble Council,http://statistics.data.gov.uk/doc/local-authority/30UN,Shared Financial Services,Balance Sheet,0030,monthly deductions,08/09/2017,0000434279,752.00,Revenue,SOUTH RIBBLE LABOUR PARTY LOCAL GOVERNM,00120663
South Ribble Council,http://statistics.data.gov.uk/doc/local-authority/30UN,Information Services,Processing-Internal,4212,"AdRem Netcrunch for period 25/05/17 - 24/05/18, as per quote",13/09/2017,0000434457,455.00,Revenue,STACK DATA SOLUTIONS LTD,130504
South Ribble Council,http://statistics.data.gov.uk/doc/local-authority/30UN,Development Enterprise & Comm Mgnt,Other Misc,4851,"Skills project development for Schools Workshop� Ref Leyland Truck Trail June 2017   @ 2,480 + VAT",08/09/2017,0000434375,"2,480.00",Revenue,STEMFirst Ltd,132095
South Ribble Council,http://statistics.data.gov.uk/doc/local-authority/30UN,Development Enterprise & Comm Mgnt,Other Misc,4851,"Skills project development for Schools Resource  2017/18   @ 2,480 + VAT",13/09/2017,0000434455,"2,480.00",Revenue,STEMFirst Ltd,132095
South Ribble Council,http://statistics.data.gov.uk/doc/local-authority/30UN,Development Enterprise & Comm Mgnt,Other Misc,4851,Truck Trail - Consultancy time:  July @ 690,13/09/2017,0000433735,690.00,Revenue,STONE CREATE LTD,130896
South Ribble Council,http://statistics.data.gov.uk/doc/local-authority/30UN,Area 2 - Waste Transport/Eastern & Central Teams,Other Misc,48GR,DOMESTIVE GREEN WASTE/APPROVED GROWTH - ARTWORK/LEAFLETS,15/09/2017,0000434152,950.00,Revenue,STONE CREATE LTD,130896
South Ribble Council,http://statistics.data.gov.uk/doc/local-authority/30UN,Development Enterprise & Comm Mgnt,Other Misc,4851,"Truck Trail  Set up and management of Twitter, Instagram & Facebook between Feb- Sept 2017 @4,850.00",08/09/2017,0000434310,550.00,Revenue,STONE CREATE LTD,130896
South Ribble Council,http://statistics.data.gov.uk/doc/local-authority/30UN,Development Enterprise & Comm Mgnt,Other Misc,4851,Truck Trail � Facebook Advertising Management:  Activity additional to social media support already contracted.To deliver,08/09/2017,0000434311,500.00,Revenue,STONE CREATE LTD,130896
South Ribble Council,http://statistics.data.gov.uk/doc/local-authority/30UN,Scrutiny,Subs to Statutory Bodies,4720,NAME REDACTED - Annual Subscription 08/10/2017 - 07/10/2018 Year Plan - Gold,15/09/2017,0000434548,299.00,Revenue,SURVEY MONKEY,130943
South Ribble Council,http://statistics.data.gov.uk/doc/local-authority/30UN,Regeneration,Capital Expenditure,C230,survey,08/09/2017,0000434308,495.00,Revenue,SURVEY OPERATIONS LTD,00060697
South Ribble Council,http://statistics.data.gov.uk/doc/local-authority/30UN,Area 3 - Parks/Leyland East West,Grounds Maint Cntrctrs Chgs,4657,4x KK015823 - K&K Pendulum seat (red) with adapter @ 255.35.,06/09/2017,0000434077,"1,021.40",Revenue,SUTCLIFFE PLAY LTD,00034953
South Ribble Council,http://statistics.data.gov.uk/doc/local-authority/30UN,Area 3 - Parks/Leyland East West,Grounds Maint Cntrctrs Chgs,4657,4x KK015987 - K & K  Hand Grip (2m) for cable ride @ 420.00,06/09/2017,0000434077,"1,680.00",Revenue,SUTCLIFFE PLAY LTD,00034953
South Ribble Council,http://statistics.data.gov.uk/doc/local-authority/30UN,Area 3 - Parks/Leyland East West,Grounds Maint Cntrctrs Chgs,4657,Carriage,06/09/2017,0000434077,270.00,Revenue,SUTCLIFFE PLAY LTD,00034953
South Ribble Council,http://statistics.data.gov.uk/doc/local-authority/30UN,Property Services,Rep & Maint Premises,2020,"Cleaning supplies for the Civic Centre, West Paddock, Leyland",13/09/2017,0000434423,299.92,Revenue,SWIFT KLEEN,00119360
South Ribble Council,http://statistics.data.gov.uk/doc/local-authority/30UN,Area 2 - Waste Transport/Eastern & Central Teams,External Contractors Charges,4570,SPEC REPAIR - JFC9097 - PF15HYU - PD,15/09/2017,0000434242,"1,320.23",Revenue,Taillift UK,132311
South Ribble Council,http://statistics.data.gov.uk/doc/local-authority/30UN,Property Services,Professional Fees,4510,"Costs for acting as letting agents for unit 38 Momentum Place, Bamber Bridge",27/09/2017,0000434766,588.75,Revenue,Taylor Weaver,132355
South Ribble Council,http://statistics.data.gov.uk/doc/local-authority/30UN,Development Enterprise & Comm Mgnt,Sports Dev Expenses,4894,"400 - Outdoor 500 - Tennis 1,000 - Cheerleading 800 - Fencing 700 - Archery 500 - Curling 600 - Fun Fitness 500 - Netball 400 ",13/09/2017,0000434374,586.00,Revenue,TOWNSEND PRINT SERVICES LTD,00037170
South Ribble Council,http://statistics.data.gov.uk/doc/local-authority/30UN,Development Enterprise & Comm Mgnt,Other Misc,4851,Leyland Festival - Saturday 17th June 2017 Re Arts Centre Area,15/09/2017,0000434357,600.00,Revenue,UK Media Events Ltd,132263
South Ribble Council,http://statistics.data.gov.uk/doc/local-authority/30UN,Information Services,Peripherals,4247,Migration of Voice Circuits - Engineer to attend site,13/09/2017,0000434419,570.00,Revenue,UNIFY ENTERPRISE COMMUNICATIONS LTD,00109765
South Ribble Council,http://statistics.data.gov.uk/doc/local-authority/30UN,Property Services,Operational Furniture & Equip,4012,Annual Contract for 2017/2018 to cover the rental and the vending  machines at the Civic Centre,01/09/2017,0000434303,322.09,Revenue,VENDING ENTERPRISES,00101501
South Ribble Council,http://statistics.data.gov.uk/doc/local-authority/30UN,Information Services,Peripherals,4269,"Annual purchase order for ISDN lines, line rentals & call charges for period 01/04/17 - 31/03/18",01/09/2017,0000434301,"1,291.69",Revenue,VODAFONE RE:CABLE & WIRELESS UK,130810
South Ribble Council,http://statistics.data.gov.uk/doc/local-authority/30UN,Information Services,Peripherals,4247,"Moss Side link, internet & router - September 2017",06/09/2017,0000434386,"1,312.66",Revenue,VODAFONE RE:CABLE & WIRELESS UK,130810
South Ribble Council,http://statistics.data.gov.uk/doc/local-authority/30UN,Property Services,Water Charges,2511,23/5/17 to 28/8/17,06/09/2017,0000434340,676.16,Revenue,WATER PLUS,00029845
South Ribble Council,http://statistics.data.gov.uk/doc/local-authority/30UN,Property Services,Water Charges,2511,26/5/17 to 31/8/17,27/09/2017,0000434463,"7,781.88",Revenue,WATER PLUS,00029845
South Ribble Council,http://statistics.data.gov.uk/doc/local-authority/30UN,Property Services,Water Charges,2511,10/3/17 to 6/9/17,22/09/2017,0000434554,"3,434.37",Revenue,WATER PLUS,00029845
South Ribble Council,http://statistics.data.gov.uk/doc/local-authority/30UN,HR & Communications,Consultancy Fees,4541,Professional Services - Monitoring Officer,27/09/2017,0000434673,"3,303.00",Revenue,WEIGHTMANS LLP,00120867
South Ribble Council,http://statistics.data.gov.uk/doc/local-authority/30UN,Revenues Plus,Postage,4291,Mail Services Council Tax Sept 2017,15/09/2017,0000434584,266.00,Revenue,WHISTL UK LTD,131310
South Ribble Council,http://statistics.data.gov.uk/doc/local-authority/30UN,Area 3 - Parks/Leyland East West,Grounds Maint Cntrctrs Chgs,4657,3no LARGE OVERLAYS,06/09/2017,0000433562,150.00,Revenue,WOODSTOCK SIGNS,00039039
South Ribble Council,http://statistics.data.gov.uk/doc/local-authority/30UN,Area 3 - Parks/Leyland East West,Grounds Maint Cntrctrs Chgs,4657,3no MEDIUM OVERLAYS,06/09/2017,0000433562,135.00,Revenue,WOODSTOCK SIGNS,00039039
South Ribble Council,http://statistics.data.gov.uk/doc/local-authority/30UN,Area 3 - Parks/Leyland East West,Grounds Maint Cntrctrs Chgs,4657,"2no ALUMINIUM POSTS, 114mm DIAMETER, PAINTED BROWN",06/09/2017,0000433562,400.00,Revenue,WOODSTOCK SIGNS,00039039
South Ribble Council,http://statistics.data.gov.uk/doc/local-authority/30UN,Area 3 - Parks/Leyland East West,Grounds Maint Cntrctrs Chgs,4657,8no RECESSES EXTENDED ON OAK POSTS,06/09/2017,0000433562,80.00,Revenue,WOODSTOCK SIGNS,00039039
South Ribble Council,http://statistics.data.gov.uk/doc/local-authority/30UN,Area 3 - Parks/Leyland East West,Grounds Maint Cntrctrs Chgs,4657,drilling for fixings,06/09/2017,0000433562,40.00,Revenue,WOODSTOCK SIGNS,00039039
South Ribble Council,http://statistics.data.gov.uk/doc/local-authority/30UN,Area 3 - Parks/Leyland East West,Grounds Maint Cntrctrs Chgs,4657,3no Overflow Car Park Overlays,06/09/2017,0000434158,150.00,Revenue,WOODSTOCK SIGNS,00039039
South Ribble Council,http://statistics.data.gov.uk/doc/local-authority/30UN,Area 3 - Parks/Leyland East West,Grounds Maint Cntrctrs Chgs,4657,2no A1 Prints on Correx,06/09/2017,0000434158,120.00,Revenue,WOODSTOCK SIGNS,00039039
South Ribble Council,http://statistics.data.gov.uk/doc/local-authority/30UN,Area 3 - Parks/Leyland East West,Grounds Maint Cntrctrs Chgs,4657,1no Conservatory Overlay,06/09/2017,0000434158,50.00,Revenue,WOODSTOCK SIGNS,00039039
South Ribble Council,http://statistics.data.gov.uk/doc/local-authority/30UN,Area 3 - Parks/Leyland East West,Grounds Maint Cntrctrs Chgs,4657,3no Ali Maze Signs & Posts,06/09/2017,0000434158,435.00,Revenue,WOODSTOCK SIGNS,00039039
South Ribble Council,http://statistics.data.gov.uk/doc/local-authority/30UN,Area 3 - Parks/Leyland East West,Grounds Maint Cntrctrs Chgs,4657,2no Broadwalk Prohib Posts,06/09/2017,0000434158,200.00,Revenue,WOODSTOCK SIGNS,00039039
South Ribble Council,http://statistics.data.gov.uk/doc/local-authority/30UN,Area 3 - Parks/Leyland East West,Grounds Maint Cntrctrs Chgs,4657,1no A2 Drowning Warning Sign,06/09/2017,0000434158,45.00,Revenue,WOODSTOCK SIGNS,00039039
South Ribble Council,http://statistics.data.gov.uk/doc/local-authority/30UN,HR & Communications,Training Expense-Course Fees,1408,OCC HEALTH ACTIVITY FOR JULY 2017,01/09/2017,0000433981,480.00,Revenue,WRIGHTINGTON WIGAN & LEIGH NHS FOUNDATION TRUST,131288
South Ribble Council,http://statistics.data.gov.uk/doc/local-authority/30UN,Planning,Professional Fees,4510,Professional Consultancy Services in connection with the Cuerden Investment Site as agreed with NAME REDACTED,01/09/2017,0000434295,"11,000.00",Revenue,WYG ENVIRONMENT TRANSPORT LIMITED,130177
